{"text_format":"1","workbook":"xlsx","n_sheets":5,"sheets":["Notes","Summary","Region (Local Office)","Orgs","BS"],"not_rendered":{"charts":0,"images":0,"macros":1,"external_links":0,"defined_names":15,"comments":0,"pivot_tables":0},"unopened":[],"bounds":{"document_bytes":16777216,"sheet_cells":100000,"rows_first":2000,"rows_last":500,"rows_between":2000,"halvings":0,"cell_chars":16384,"cell_head_chars":4096},"cells_cut":0,"cells_raw":0,"read":"whole","date_system":"1900"}

{"sheet":"Notes","index":0,"n_rows":3,"n_cols":1,"rows_kept":3,"cut":false,"hidden":false,"merged":[]}
[]
["Staff Friends and Family Test (FFT) Data - Q2_2017-18"]
["  Quarter 2: 1st July - 30th September 2017"]

{"sheet":"Summary","index":1,"n_rows":23,"n_cols":8,"rows_kept":23,"cut":false,"hidden":false,"merged":[[7,2,7,4],[7,5,7,7],[22,1,22,7]]}
[]
[]
[]
[null,"National level headline figures for Quarter 2 and cumulatively for 2017-18"]
[]
[null,"229 NHS service providers submitted to Quarter 2"]
[]
[null,null,"Quarter 2",null,null,"Cumulative for 2017-18"]
[null,null,"Response count","Percentage Recommended","Percentage Not Recommended","Response count","Percentage Recommended","Percentage Not Recommended"]
[null,"Care - All",137225,0.79870400573397016,6.3563691682086462E-2,289276,0.80642237517450222,5.987248317486335E-2]
[null,"Care - Acute",94960,0.81471300339384456,5.9587875199560172E-2,200325,0.82485748123168334,5.4668995142318037E-2]
[null,"Care - Ambulance",4074,0.79980251789681556,8.2201925450506044E-2,8039,0.80690777124264801,7.4709047678638466E-2]
[null,"Care - Community",7978,0.80700428319475936,5.2658100277147894E-2,17635,0.81924414296300518,5.0276463546713786E-2]
[null,"Care - Mental health ",30213,0.74616175349006864,7.6400172430944727E-2,63277,0.74463233897016912,7.7078979036037748E-2]
[]
[null,"Work - All",137225,0.62693236094704941,0.18605691981481617,289276,0.63565872570773696,0.17840161350439082]
[null,"Work - Acute",94960,0.63913869806653001,0.17749487699478675,200325,0.64990629911739817,0.16756337403780278]
[null,"Work - Ambulance",4074,0.43315244203256043,0.38209176122348298,8039,0.44358268701526143,0.38366274706029524]
[null,"Work - Community",7978,0.58892532795156405,0.21417759838546924,17635,0.60142694063926938,0.20296803652968037]
[null,"Work - Mental health ",30213,0.62485065710872167,0.17904553298818532,63277,0.62466896081447532,0.17967300464644223]
[]
[]
[null,"4 organisations did not submit a return for Q2 of the Staff FFT including: Wye Valley NHS Trust (RLQ), Mid Essex Hospital Services NHS Trust (RQ8), Barnet, Enfield and Haringey Mental Health NHS Trust (RRP) and Royal Free London NHS Foundation Trust (RAL)"]

{"sheet":"Region (Local Office)","index":2,"n_rows":21,"n_cols":22,"rows_kept":21,"cut":false,"hidden":false,"merged":[[3,8,3,14],[3,15,3,21],[3,0,4,0],[3,1,4,1],[3,2,4,2],[3,3,4,3],[3,4,3,5],[3,6,3,7]]}
[]
[]
[]
["Region (LO) Code","Region (Local Office) Name","Total Responses","HSCIC Workforce Headcount","Work",null,"Care",null,"Breakdown of Responses - Work",null,null,null,null,null,null,"Breakdown of Responses - Care"]
[null,null,null,null,"Percentage Recommended","Percentage Not  Recommended","Percentage Recommended","Percentage Not  Recommended","Extremely Likely","Likely","Neither","Unlikely","Extremely Unlikely","Don't Know","No Response","Extremely Likely","Likely","Neither","Unlikely","Extremely Unlikely","Don't Know","No Response"]
[null,"England",137225,1149300,0.62693236094704941,0.18605691981481617,0.79870400573397016,6.3563691682086462E-2,29679,55770,24502,15001,10358,987,928,45174,64032,17301,5718,2973,1531,496]
[null,"Selection (excluding suppressed data)",{"$f":"SUBTOTAL(9,C8:C994)","v":137225},{"$f":"SUBTOTAL(9,D8:D994)","v":1149300},{"$f":"IFERROR((I7+J7)/SUM(I7:N7),\"-\")","v":0.62693236094704941},{"$f":"IFERROR((M7+L7)/SUM(I7:N7),\"-\")","v":0.18605691981481617},{"$f":"IFERROR((P7+Q7)/SUM(P7:U7),\"-\")","v":0.79870400573397016},{"$f":"IFERROR((S7+T7)/SUM(P7:U7),\"-\")","v":6.3563691682086462E-2},{"$f":"SUBTOTAL(9,I8:I994)","v":29679},{"$f":"SUBTOTAL(9,J8:J994)","v":55770},24502,15001,10358,987,928,45174,64032,17301,5718,2973,1531,496]
["Q72","NHS England Yorkshire & Humber",17624,123688,0.62769371847776245,0.1902796882164145,0.79727728411938936,6.778309409888357E-2,3836,7116,3074,1975,1345,102,176,5903,8094,2198,791,399,171,68]
["Q74","NHS England Cumbria & North East",13630,85454,0.67582539330822067,0.14395450180958713,0.81296868107631226,5.2786354947801796E-2,3457,5693,2277,1218,731,163,91,4958,6100,1591,483,235,235,28]
["Q75","NHS England Cheshire & Merseyside",4153,65310,0.62053140096618353,0.19879227053140097,0.80931692010620326,7.0480328264542605E-2,983,1586,726,475,348,22,13,1469,1884,456,185,107,42,10]
["Q83","NHS England Greater Manchester",11580,77443,0.63230930354337578,0.1755978355733985,0.81553906591008296,5.3775643823657793E-2,2605,4640,2138,1235,777,63,122,4154,5188,1368,412,204,129,125]
["Q84","NHS England Lancashire",3949,29232,0.62925342813610974,0.18131030980192991,0.77184959349593496,7.1646341463414628E-2,800,1678,719,428,286,27,11,988,2050,579,190,92,37,13]
["Q76","NHS England North Midlands",6885,81312,0.58959622752726204,0.21529619805481875,0.79058276413312023,7.2809184711524491E-2,1325,2676,1268,828,633,56,99,2157,3283,861,335,166,79,4]
["Q77","NHS England West Midlands",6448,93793,0.65129638254929356,0.17652538425710293,0.78851823118696662,7.3079906904577191E-2,1615,2580,1024,640,497,85,7,2171,2911,790,300,171,102,3]
["Q78","NHS England Central Midlands",8365,68693,0.61520958083832333,0.1902994011976048,0.7599042489527229,7.1454219030520641E-2,1648,3489,1565,975,614,59,15,2236,4113,1311,395,202,98,10]
["Q79","NHS England East",11258,77949,0.61290322580645162,0.18264676972567243,0.7958891867739053,5.4334226988382486E-2,2145,4714,2194,1240,804,94,67,3583,5323,1534,409,199,142,68]
["Q80","NHS England South West",6090,67714,0.61533399144455414,0.20384995064165845,0.79871837002957613,6.5724613867893522E-2,1283,2457,1077,698,541,22,12,2206,2655,784,260,140,41,4]
["Q81","NHS England South East",12761,86149,0.57543086487762651,0.22491540096010074,0.77112316277607484,7.8126228090859076E-2,2401,4911,2474,1638,1220,63,54,3755,6056,1827,651,343,91,38]
["Q82","NHS England South Central",8547,65071,0.60996583814347982,0.18718341382966192,0.81897261079111316,4.8783354884213002E-2,1577,3601,1678,1030,559,44,58,2623,4344,1056,279,136,69,40]
["Q70","NHS England Wessex",7460,51738,0.68380670345941585,0.13999192354287252,0.85273926504240138,3.6882487548795265E-2,1774,3306,1256,655,385,53,31,2807,3528,728,187,87,92,31]
["Q71","NHS England London",18475,175754,0.63120799868873956,0.19581489373326777,0.7962108463167038,7.2363063894468269E-2,4230,7323,3032,1966,1618,134,172,6164,8503,2218,841,492,203,54]

{"sheet":"Orgs","index":3,"n_rows":236,"n_cols":30,"rows_kept":236,"cut":false,"hidden":false,"merged":[[3,5,3,6],[3,7,3,8],[3,9,3,15],[3,16,3,22],[3,23,3,29],[3,4,4,4],[1,1,1,2],[3,0,4,0],[3,1,4,1],[3,2,4,2],[3,3,4,3]]}
[]
[null,null,null,null,null,null,null,"  "]
[]
["Region (LO) Code","Org Code","Org Name","Total Responses","HSCIC Workforce Headcount","Work",null,"Care",null,"Breakdown of Responses - Work",null,null,null,null,null,null,"Breakdown of Responses - Care",null,null,null,null,null,null,"Mode of Collection"]
[null,null,null,null,null,"Percentage Recommended","Percentage Not  Recommended","Percentage Recommended","Percentage Not  Recommended","Extremely Likely","Likely","Neither","Unlikely","Extremely Unlikely","Don't Know","No Response","Extremely Likely","Likely","Neither","Unlikely","Extremely Unlikely","Don't Know","No Response","SMS/Text/\nSmartphone app","Electronic tablet/Kiosk","Paper survey at work","Paper survey sent to home ","Telephone survey","Online survey","Other"]
[null,null,"England",137225,1149300,0.62693236094704941,0.18605691981481617,0.79870400573397016,6.3563691682086462E-2,29679,55770,24502,15001,10358,987,928,45174,64032,17301,5718,2973,1531,496,0,761,5820,444,0,130188,12]
[null,null,"Selection (excluding suppressed data)",{"$f":"SUBTOTAL(9,D8:D994)","v":137225},{"$f":"SUBTOTAL(9,E8:E994)","v":1149300},{"$f":"IFERROR((J7+K7)/SUM(J7:O7),\"-\")","v":0.62700643674448986},{"$f":"IFERROR((N7+M7)/SUM(J7:O7),\"-\")","v":0.1859976953959295},{"$f":"IFERROR((Q7+R7)/SUM(Q7:V7),\"-\")","v":0.79880158910163079},{"$f":"IFERROR((T7+U7)/SUM(Q7:V7),\"-\")","v":6.3512851091227021E-2},{"$f":"SUBTOTAL(9,J8:J994)","v":29674},{"$f":"SUBTOTAL(9,K8:K994)","v":55755},24491,14993,10349,987,928,45164,64017,17289,5714,2967,1530,496,0,761,5820,444,0,130140,12]
["Q70","RBD","DORSET COUNTY HOSPITAL NHS FOUNDATION TRUST",146,2646,0.47183098591549294,8.4507042253521125E-2,0.42857142857142855,5.7142857142857141E-2,9,58,39,10,2,24,4,18,42,42,5,3,30,6,0,0,0,0,0,146,0]
["Q70","RDY","DORSET HEALTHCARE UNIVERSITY NHS FOUNDATION TRUST",389,5518,0.71317829457364346,0.13436692506459949,0.865979381443299,2.0618556701030927E-2,102,174,55,35,17,4,2,143,193,39,3,5,5,1,0,0,75,0,0,314,0]
["Q70","RN5","HAMPSHIRE HOSPITALS NHS FOUNDATION TRUST",1300,5981,0.70007710100231302,0.13878180416345412,0.88948995363214833,2.3183925811437404E-2,287,621,207,129,51,2,3,460,691,104,19,11,9,6,0,0,10,0,0,1290,0]
["Q70","R1F","ISLE OF WIGHT NHS TRUST",317,2999,0.42586750788643535,0.33123028391167192,0.58359621451104104,0.15457413249211358,37,98,77,58,47,0,0,48,137,78,38,11,5,0,0,0,0,0,0,317,0]
["Q70","RD3","POOLE HOSPITAL NHS FOUNDATION TRUST",269,3836,0.79553903345724908,8.1784386617100371E-2,0.92565055762081783,1.858736059479554E-2,85,129,32,10,12,1,0,148,101,13,3,2,2,0,0,0,0,0,0,269,0]
["Q70","RHU","PORTSMOUTH HOSPITALS NHS TRUST",39,7069,0.51282051282051277,0.35897435897435898,0.76923076923076927,0.10256410256410256,5,15,5,9,5,0,0,13,17,5,3,1,0,0,0,0,0,0,0,39,0]
["Q70","R1C","SOLENT NHS TRUST",1239,3316,0.64123376623376627,0.16801948051948051,0.82276422764227641,4.3902439024390241E-2,261,529,225,133,74,10,7,382,630,153,37,17,11,9,0,0,0,0,0,1239,0]
["Q70","RW1","SOUTHERN HEALTH NHS FOUNDATION TRUST",678,5834,0.48444444444444446,0.25481481481481483,0.69719350073855246,8.1240768094534718E-2,89,238,170,96,76,6,3,143,329,133,38,17,17,1,0,0,0,0,0,678,0]
["Q70","RDZ","THE ROYAL BOURNEMOUTH AND CHRISTCHURCH HOSPITALS NHS FOUNDATION TRUST",273,4471,0.75091575091575091,8.0586080586080591E-2,0.86080586080586086,3.6630036630036632E-2,72,133,46,13,9,0,0,102,133,25,9,1,3,0,0,0,0,0,0,273,0]
["Q70","RHM","UNIVERSITY HOSPITAL SOUTHAMPTON NHS FOUNDATION TRUST",2810,10068,0.76411722659042169,9.0779127948534669E-2,0.92969307637401855,1.8201284796573874E-2,827,1311,400,162,92,6,12,1350,1255,136,32,19,10,8,0,0,0,0,0,2810,0]
["Q71","RF4","BARKING, HAVERING AND REDBRIDGE UNIVERSITY HOSPITALS NHS TRUST",349,6238,0.43839541547277938,0.32378223495702008,0.69298245614035092,0.12865497076023391,54,99,65,94,19,18,0,66,171,58,37,7,3,7,0,0,0,0,0,349,0]
["Q71","R1H","BARTS HEALTH NHS TRUST",785,14758,0.60841836734693877,0.19770408163265307,0.7493606138107417,7.9283887468030695E-2,151,326,149,89,66,3,1,205,381,126,43,19,8,3,0,0,0,0,0,785,0]
["Q71","TAF","CAMDEN AND ISLINGTON NHS FOUNDATION TRUST",259,1943,0.50579150579150578,0.28185328185328185,0.61776061776061775,0.15444015444015444,41,90,53,33,40,2,0,45,115,50,24,16,9,0,0,0,0,0,0,259,0]
["Q71","RV3","CENTRAL AND NORTH WEST LONDON NHS FOUNDATION TRUST",1263,6511,0.59540775930324619,0.20902612826603326,0.75613618368962787,7.6009501187648459E-2,252,500,240,152,112,7,0,339,616,196,65,31,16,0,0,0,0,0,0,1263,0]
["Q71","RYX","CENTRAL LONDON COMMUNITY HEALTHCARE NHS TRUST",398,3059,0.59296482412060303,0.23366834170854273,0.70854271356783916,9.5477386934673364E-2,85,151,68,49,44,1,0,98,184,73,26,12,5,0,0,0,0,0,0,398,0]
["Q71","RQM","CHELSEA AND WESTMINSTER HOSPITAL NHS FOUNDATION TRUST",1433,5517,0.66408995080815181,0.1426563598032326,0.83589385474860334,4.3296089385474863E-2,328,617,259,118,85,16,10,518,679,146,39,23,27,1,0,0,0,0,0,1433,0]
["Q71","RJ6","CROYDON HEALTH SERVICES NHS TRUST",364,3553,0.62912087912087911,0.18131868131868131,0.7005494505494505,0.11263736263736264,82,147,58,43,23,11,0,79,176,61,29,12,7,0,0,0,246,0,0,118,0]
["Q71","RWK","EAST LONDON NHS FOUNDATION TRUST",492,5110,0.74127310061601648,0.12731006160164271,0.75510204081632648,7.9591836734693874E-2,152,209,62,38,24,2,5,134,236,73,32,7,8,2,0,0,0,0,0,492,0]
["Q71","RVR","EPSOM AND ST HELIER UNIVERSITY HOSPITALS NHS TRUST",205,4745,0.6097560975609756,0.19024390243902439,0.78048780487804881,8.7804878048780483E-2,41,84,41,25,14,0,0,57,103,27,11,7,0,0,0,0,0,0,0,205,0]
["Q71","RP4","GREAT ORMOND STREET HOSPITAL FOR CHILDREN NHS FOUNDATION TRUST",444,4262,0.76244343891402711,9.2760180995475117E-2,0.97065462753950338,6.7720090293453723E-3,139,198,61,25,16,3,2,298,132,9,2,1,1,1,0,0,0,0,0,444,0]
["Q71","RJ1","GUY'S AND ST THOMAS' NHS FOUNDATION TRUST",1448,14449,0.77190542420027819,9.8748261474269822E-2,0.92515592515592515,3.1185031185031187E-2,511,599,183,65,77,3,10,783,552,53,22,23,10,5,0,0,0,0,0,1448,0]
["Q71","RQX","HOMERTON UNIVERSITY HOSPITAL NHS FOUNDATION TRUST",868,3596,0.73726851851851849,0.12615740740740741,0.83236994219653182,3.9306358381502891E-2,251,386,117,66,43,1,4,266,454,104,20,14,7,3,0,0,0,0,0,868,0]
["Q71","RY9","HOUNSLOW AND RICHMOND COMMUNITY HEALTHCARE NHS TRUST",369,1132,0.66395663956639561,0.15447154471544716,0.8644986449864499,4.6070460704607047E-2,82,163,64,26,31,3,0,123,196,29,12,5,4,0,0,0,0,0,0,369,0]
["Q71","RYJ","IMPERIAL COLLEGE HEALTHCARE NHS TRUST",116,10259,0.87068965517241381,3.4482758620689655E-2,0.94827586206896552,8.6206896551724137E-3,49,52,10,2,2,1,0,63,47,4,1,0,1,0,0,75,41,0,0,0,0]
["Q71","RJZ","KING'S COLLEGE HOSPITAL NHS FOUNDATION TRUST",2089,11334,0.57229219143576826,0.22972292191435767,0.8223399133365431,5.4886856042368801E-2,365,771,386,286,170,7,104,655,1053,240,82,32,15,12,0,0,0,0,0,2077,12]
["Q71","RAX","KINGSTON HOSPITAL NHS FOUNDATION TRUST",35,3007,0.68571428571428572,0.14285714285714285,0.94285714285714284,0,8,16,5,4,1,1,0,13,20,2,0,0,0,0,0,35,0,0,0,0,0]
["Q71","RJ2","LEWISHAM AND GREENWICH NHS TRUST",748,5882,0.60561497326203206,0.22593582887700533,0.71390374331550799,0.12433155080213903,158,295,124,90,79,2,0,160,374,113,52,41,8,0,0,0,0,0,0,748,0]
["Q71","RRU","LONDON AMBULANCE SERVICE NHS TRUST",421,5112,0.24879227053140096,0.61594202898550721,0.70071258907363421,0.17339667458432304,26,77,53,101,154,3,7,139,156,50,47,26,3,0,0,0,0,0,0,421,0]
["Q71","R1K","LONDON NORTH WEST HEALTHCARE NHS TRUST",664,8072,0.55757575757575761,0.25757575757575757,0.71623672230652502,9.4081942336874058E-2,102,266,120,90,80,2,4,132,340,122,37,25,3,5,0,0,0,0,0,664,0]
["Q71","RP6","MOORFIELDS EYE HOSPITAL NHS FOUNDATION TRUST",196,2050,0.66836734693877553,0.15816326530612246,0.95408163265306123,3.0612244897959183E-2,62,69,33,14,17,1,0,130,57,3,1,5,0,0,0,0,0,0,0,196,0]
["Q71","RAT","NORTH EAST LONDON NHS FOUNDATION TRUST",53,5319,0.71698113207547165,0.18867924528301888,0.73584905660377353,0.11320754716981132,16,22,4,2,8,1,0,18,21,7,1,5,1,0,0,0,0,0,0,53,0]
["Q71","RAP","NORTH MIDDLESEX UNIVERSITY HOSPITAL NHS TRUST",182,3138,0.7016574585635359,0.11602209944751381,0.68508287292817682,0.14917127071823205,46,81,30,14,7,3,1,46,78,28,18,9,2,1,0,0,0,0,0,182,0]
["Q71","RPG","OXLEAS NHS FOUNDATION TRUST",238,3305,0.55882352941176472,0.22268907563025211,0.70168067226890751,0.13025210084033614,56,77,50,33,20,2,0,69,98,35,20,11,5,0,0,0,0,0,0,238,0]
["Q71","RT3","ROYAL BROMPTON & HAREFIELD NHS FOUNDATION TRUST",234,3542,0.79130434782608694,0.1,0.94849785407725318,3.8626609442060089E-2,119,63,23,13,10,2,4,178,43,3,2,7,0,1,0,0,0,0,0,234,0]
["Q71","RAN","ROYAL NATIONAL ORTHOPAEDIC HOSPITAL NHS TRUST",13,1458,0.61538461538461542,7.6923076923076927E-2,1,0,2,6,4,0,1,0,0,7,5,0,0,0,0,1,0,13,0,0,0,0,0]
["Q71","RV5","SOUTH LONDON AND MAUDSLEY NHS FOUNDATION TRUST",1012,4488,0.66103379721669975,0.14711729622266401,0.75646123260437381,6.4612326043737581E-2,216,449,190,86,62,3,6,249,512,171,40,25,9,6,0,0,0,0,0,1012,0]
["Q71","RQY","SOUTH WEST LONDON AND ST GEORGE'S MENTAL HEALTH NHS TRUST",587,2057,0.54482758620689653,0.22413793103448276,0.64371772805507743,0.13425129087779691,84,232,128,66,64,6,7,87,287,120,52,26,9,6,0,0,0,0,0,587,0]
["Q71","RJ7","ST GEORGE'S UNIVERSITY HOSPITALS NHS FOUNDATION TRUST",380,8629,0.48421052631578948,0.35263157894736841,0.76578947368421058,7.8947368421052627E-2,47,137,57,65,69,5,0,112,179,51,20,10,8,0,0,0,0,0,0,380,0]
["Q71","RNK","TAVISTOCK AND PORTMAN NHS FOUNDATION TRUST",42,664,0.69047619047619047,0.14285714285714285,0.83333333333333337,2.3809523809523808E-2,10,19,7,3,3,0,0,21,14,4,1,0,2,0,0,0,0,0,0,42,0]
["Q71","RAS","THE HILLINGDON HOSPITALS NHS FOUNDATION TRUST",89,3160,0.651685393258427,0.11235955056179775,1,0,0,58,21,10,0,0,0,0,89,0,0,0,0,0,0,0,0,0,0,89,0]
["Q71","RPY","THE ROYAL MARSDEN NHS FOUNDATION TRUST",31,3887,0.90322580645161288,3.2258064516129031E-2,1,0,15,13,2,1,0,0,0,29,2,0,0,0,0,0,0,0,0,0,0,31,0]
["Q71","RKE","THE WHITTINGTON HOSPITAL NHS TRUST",890,4136,0.53258426966292138,0.34157303370786518,0.69438202247191017,0.1303370786516854,174,300,104,121,183,8,0,235,383,142,62,54,14,0,0,0,0,0,0,890,0]
["Q71","RRV","UNIVERSITY COLLEGE LONDON HOSPITALS NHS FOUNDATION TRUST",1612,8194,0.70965732087227418,0.13208722741433021,0.90012406947890822,3.8461538461538464E-2,475,664,239,126,86,15,7,781,670,83,34,28,16,0,0,0,0,0,0,1612,0]
["Q71","RKL","WEST LONDON MENTAL HEALTH NHS TRUST",166,3188,0.71084337349397586,0.14457831325301204,0.65662650602409633,0.12048192771084337,31,87,22,16,8,2,0,29,80,35,9,11,2,0,0,0,0,0,0,166,0]
["Q72","RCF","AIREDALE NHS FOUNDATION TRUST",237,2810,0.7021276595744681,0.1276595744680851,0.90254237288135597,1.2711864406779662E-2,50,115,40,20,10,0,2,77,136,19,2,1,1,1,0,0,0,0,0,237,0]
["Q72","RFF","BARNSLEY HOSPITAL NHS FOUNDATION TRUST",529,3063,0.63257575757575757,0.17424242424242425,0.76704545454545459,7.1969696969696975E-2,95,239,98,57,35,4,1,118,287,81,28,10,4,1,0,0,0,0,0,529,0]
["Q72","TAD","BRADFORD DISTRICT CARE NHS FOUNDATION TRUST",116,2884,0.55172413793103448,0.28448275862068967,0.72413793103448276,6.8965517241379309E-2,20,44,19,19,14,0,0,37,47,20,5,3,4,0,0,0,0,0,0,116,0]
["Q72","RAE","BRADFORD TEACHING HOSPITALS NHS FOUNDATION TRUST",690,5686,0.62608695652173918,0.21304347826086956,0.75362318840579712,8.9855072463768115E-2,144,288,105,91,56,6,0,178,342,97,47,15,11,0,0,0,0,0,0,690,0]
["Q72","RWY","CALDERDALE AND HUDDERSFIELD NHS FOUNDATION TRUST",1831,5935,0.57150715071507152,0.20792079207920791,0.7923287671232877,5.8630136986301373E-2,331,708,389,258,120,12,13,494,952,254,78,29,18,6,0,0,0,0,0,1831,0]
["Q72","RP5","DONCASTER AND BASSETLAW TEACHING HOSPITALS NHS FOUNDATION TRUST",1846,6499,0.58961748633879785,0.2081967213114754,0.75802066340402396,7.177814029363784E-2,303,776,363,256,125,7,16,385,1009,302,96,36,11,7,0,0,0,0,0,1846,0]
["Q72","RCD","HARROGATE AND DISTRICT NHS FOUNDATION TRUST",1067,4044,0.64694656488549618,0.17938931297709923,0.83661971830985915,5.3521126760563378E-2,315,363,176,97,91,6,19,452,439,109,38,19,8,2,0,0,0,0,0,1067,0]
["Q72","RWA","HULL AND EAST YORKSHIRE HOSPITALS NHS TRUST",464,7984,0.62227074235807855,0.15502183406113537,0.7943722943722944,5.844155844155844E-2,89,196,96,48,23,6,6,143,224,67,15,12,1,2,0,0,0,0,0,464,0]
["Q72","RV9","HUMBER NHS FOUNDATION TRUST",76,2449,0.26315789473684209,0.64473684210526316,0.46052631578947367,0.28947368421052633,8,12,7,19,30,0,0,13,22,17,9,13,2,0,0,0,0,0,0,76,0]
["Q72","RGD","LEEDS AND YORK PARTNERSHIP NHS FOUNDATION TRUST",209,2440,0.45454545454545453,0.31578947368421051,0.62200956937799046,0.12918660287081341,19,76,46,32,34,2,0,20,110,46,15,12,6,0,0,0,0,0,0,209,0]
["Q72","RY6","LEEDS COMMUNITY HEALTHCARE NHS TRUST",550,2820,0.53272727272727272,0.26545454545454544,0.75090909090909086,7.2727272727272724E-2,91,202,110,96,50,1,0,161,252,91,23,17,6,0,0,0,0,0,0,550,0]
["Q72","RR8","LEEDS TEACHING HOSPITALS NHS TRUST",3313,16518,0.68403514086640416,0.16661617691608605,0.85792019347037485,4.5042321644498187E-2,761,1497,477,305,245,16,12,1254,1584,290,97,52,31,5,0,0,0,0,0,3313,0]
["Q72","RXF","MID YORKSHIRE HOSPITALS NHS TRUST",1424,7704,0.53596614950634702,0.24894217207334274,0.61744022503516172,0.15189873417721519,195,565,300,209,144,5,6,224,654,314,150,66,14,2,0,0,0,0,0,1424,0]
["Q72","RJL","NORTHERN LINCOLNSHIRE AND GOOLE NHS FOUNDATION TRUST",547,5977,0.93962264150943398,1.8867924528301887E-3,0.94716981132075473,0,373,125,31,1,0,0,17,404,98,28,0,0,0,17,0,0,547,0,0,0,0]
["Q72","RXE","ROTHERHAM DONCASTER AND SOUTH HUMBER NHS FOUNDATION TRUST",147,3496,0.55782312925170063,0.27210884353741499,0.73469387755102045,9.5238095238095233E-2,24,58,25,21,19,0,0,34,74,24,9,5,1,0,0,0,0,0,0,147,0]
["Q72","RCU","SHEFFIELD CHILDREN'S NHS FOUNDATION TRUST",1190,3103,0.64785172704296545,0.15248525695029486,0.89747899159663869,2.4369747899159664E-2,279,490,220,100,81,17,3,656,412,68,10,19,25,0,0,0,0,0,0,1190,0]
["Q72","TAH","SHEFFIELD HEALTH & SOCIAL CARE NHS FOUNDATION TRUST",192,2491,0.54166666666666663,0.21354166666666666,0.65104166666666663,0.13020833333333334,26,78,41,27,14,6,0,29,96,35,19,6,7,0,0,0,0,0,0,192,0]
["Q72","RHQ","SHEFFIELD TEACHING HOSPITALS NHS FOUNDATION TRUST",1505,16016,0.7273982056590752,0.10973084886128365,0.90909090909090906,1.6835016835016835E-2,389,665,229,108,51,7,56,694,656,100,13,12,10,20,0,0,242,0,0,1263,0]
["Q72","RXG","SOUTH WEST YORKSHIRE PARTNERSHIP NHS FOUNDATION TRUST",471,4336,0.63694267515923564,0.17409766454352441,0.74946921443736725,9.7664543524416142E-2,123,177,84,46,36,5,0,141,212,65,33,13,7,0,0,0,0,0,0,471,0]
["Q72","RFR","THE ROTHERHAM NHS FOUNDATION TRUST",406,4349,0.44556962025316454,0.35189873417721518,0.51477832512315269,0.27832512315270935,39,137,80,54,85,0,11,50,159,84,69,44,0,0,0,0,0,0,0,406,0]
["Q72","RCB","YORK TEACHING HOSPITAL NHS FOUNDATION TRUST",429,8450,0.65707434052757796,0.18225419664268586,0.78554778554778559,6.9930069930069935E-2,89,185,67,49,27,0,12,136,201,61,25,5,1,0,0,0,0,0,0,429,0]
["Q72","RX8","YORKSHIRE AMBULANCE SERVICE NHS TRUST",385,4634,0.50391644908616184,0.30548302872062666,0.87105263157894741,5.2631578947368418E-2,73,120,71,62,55,2,2,203,128,26,10,10,3,5,0,0,89,0,0,296,0]
["Q74","RLN","CITY HOSPITALS SUNDERLAND NHS FOUNDATION TRUST",397,4787,0.7002518891687658,0.14357682619647355,0.82619647355163728,5.793450881612091E-2,107,171,61,34,23,1,0,148,180,44,16,7,2,0,0,0,0,0,0,397,0]
["Q74","RXP","COUNTY DURHAM AND DARLINGTON NHS FOUNDATION TRUST",320,7182,0.5,0.26874999999999999,0.62812500000000004,0.11874999999999999,34,126,74,44,42,0,0,51,150,81,21,17,0,0,0,0,0,0,0,320,0]
["Q74","RNN","CUMBRIA PARTNERSHIP NHS FOUNDATION TRUST",376,3897,0.6063829787234043,0.13563829787234041,0.77393617021276595,6.6489361702127658E-2,93,135,92,35,16,5,0,116,175,52,19,6,8,0,0,0,1,0,0,375,0]
["Q74","RR7","GATESHEAD HEALTH NHS FOUNDATION TRUST",361,4189,0.71468144044321325,0.12742382271468145,0.85277777777777775,5.2777777777777778E-2,127,131,54,22,24,3,0,164,143,31,11,8,3,1,0,0,361,0,0,0,0]
["Q74","RNL","NORTH CUMBRIA UNIVERSITY HOSPITALS NHS TRUST",394,4059,0.53367875647668395,0.24352331606217617,0.73657289002557547,0.11508951406649616,58,148,84,51,43,2,8,111,177,55,28,17,3,3,0,0,0,0,0,394,0]
["Q74","RX6","NORTH EAST AMBULANCE SERVICE NHS FOUNDATION TRUST",574,2530,0.78919860627177696,5.5749128919860627E-2,0.91797556719022688,8.7260034904013961E-3,201,252,85,31,1,4,0,311,215,33,3,2,9,1,0,574,0,0,0,0,0]
["Q74","RVW","NORTH TEES AND HARTLEPOOL NHS FOUNDATION TRUST",76,5472,0.61842105263157898,0.22368421052631579,0.77631578947368418,0.15789473684210525,24,23,11,10,7,1,0,34,25,5,10,2,0,0,0,0,0,0,0,76,0]
["Q74","RX4","NORTHUMBERLAND, TYNE AND WEAR NHS FOUNDATION TRUST",3470,6282,0.68501440922190204,0.10749279538904899,0.76974063400576365,5.3314121037463975E-2,842,1535,606,257,116,114,0,1011,1660,460,127,58,154,0,0,0,0,0,0,3470,0]
["Q74","RTF","NORTHUMBRIA HEALTHCARE NHS FOUNDATION TRUST",604,8413,0.75762711864406784,9.3220338983050849E-2,0.88870431893687707,2.9900332225913623E-2,188,259,86,37,18,2,14,278,257,45,10,8,4,2,0,0,0,0,0,604,0]
["Q74","RTR","SOUTH TEES HOSPITALS NHS FOUNDATION TRUST",1396,8789,0.54484803558191253,0.26686434395848779,0.82340272792534097,4.9533381191672651E-2,251,484,246,223,137,8,47,522,625,162,44,25,15,3,0,0,0,0,0,1396,0]
["Q74","RE9","SOUTH TYNESIDE NHS FOUNDATION TRUST",292,3697,0.49484536082474229,0.30584192439862545,0.66323024054982815,0.1134020618556701,39,105,57,41,48,1,1,60,133,63,24,9,2,1,0,0,0,0,0,292,0]
["Q74","RX3","TEES, ESK AND WEAR VALLEYS NHS FOUNDATION TRUST",3060,6496,0.70557377049180325,0.13836065573770492,0.80905511811023623,5.4790026246719158E-2,866,1286,467,273,149,9,10,972,1494,392,128,39,23,12,0,0,0,0,0,3060,0]
["Q74","RTD","THE NEWCASTLE UPON TYNE HOSPITALS NHS FOUNDATION TRUST",1244,14225,0.74939564867042707,9.5890410958904104E-2,0.95403225806451608,1.8548387096774192E-2,386,544,184,76,43,8,3,851,332,28,11,12,6,4,0,0,0,0,0,1244,0]
["Q74","RTX","UNIVERSITY HOSPITALS OF MORECAMBE BAY NHS FOUNDATION TRUST",1066,5436,0.69470699432892247,0.13988657844990549,0.81032863849765258,5.2582159624413143E-2,241,494,170,84,64,5,8,329,534,140,31,25,6,1,0,0,290,0,0,776,0]
["Q75","REM","AINTREE UNIVERSITY HOSPITAL NHS FOUNDATION TRUST",880,4801,0.61467889908256879,0.19839449541284404,0.85354691075514877,5.2631578947368418E-2,177,359,162,98,75,1,8,275,471,75,33,13,7,6,0,0,0,0,0,880,0]
["Q75","RBS","ALDER HEY CHILDREN'S NHS FOUNDATION TRUST",0,3355,"NA","NA","NA","NA",0,0,0,0,0,0,0,0,0,0,0,0,0,0,0,0,0,0,0,0,0]
["Q75","RXA","CHESHIRE AND WIRRAL PARTNERSHIP NHS FOUNDATION TRUST",123,3358,0.60162601626016265,0.2032520325203252,0.74796747967479671,9.7560975609756101E-2,32,42,24,12,13,0,0,30,62,16,9,3,3,0,0,0,0,0,0,123,0]
["Q75","RJR","COUNTESS OF CHESTER HOSPITAL NHS FOUNDATION TRUST",259,3962,0.6216216216216216,0.21621621621621623,0.78764478764478763,8.1081081081081086E-2,45,116,42,33,23,0,0,84,120,33,16,5,1,0,0,0,0,0,0,259,0]
["Q75","RJN","EAST CHESHIRE NHS TRUST",293,2708,0.55290102389078499,0.27986348122866894,0.7303754266211604,9.8976109215017066E-2,73,89,45,47,35,4,0,97,117,43,15,14,7,0,0,0,129,0,0,164,0]
["Q75","RY1","LIVERPOOL COMMUNITY HEALTH NHS TRUST",77,1949,0.8441558441558441,2.5974025974025976E-2,0.96103896103896103,0,21,44,10,2,0,0,0,29,45,3,0,0,0,0,0,0,0,0,0,77,0]
["Q75","RBQ","LIVERPOOL HEART AND CHEST HOSPITAL NHS FOUNDATION TRUST",165,1560,0.71165644171779141,0.15337423312883436,0.95705521472392641,2.4539877300613498E-2,65,51,20,15,10,2,2,121,35,2,3,1,1,2,0,0,0,0,0,165,0]
["Q75","REP","LIVERPOOL WOMEN'S NHS FOUNDATION TRUST",368,1491,0.65760869565217395,0.14130434782608695,0.875,3.8043478260869568E-2,86,156,74,32,20,0,0,159,163,32,6,8,0,0,0,0,0,0,0,368,0]
["Q75","RW4","MERSEY CARE NHS FOUNDATION TRUST",717,4759,0.57402234636871508,0.20530726256983239,0.71129707112970708,0.10181311018131102,134,277,151,93,54,7,1,155,355,120,47,26,14,0,0,0,33,0,0,684,0]
["Q75","RBT","MID CHESHIRE HOSPITALS NHS FOUNDATION TRUST",143,4376,0.69230769230769229,0.16083916083916083,0.88111888111888115,4.195804195804196E-2,45,54,20,14,9,1,0,58,68,11,4,2,0,0,0,0,63,0,0,80,0]
["Q75","RTV","NORTH WEST BOROUGHS HEALTHCARE NHS FOUNDATION TRUST",136,3706,0.63970588235294112,0.18382352941176472,0.78358208955223885,3.7313432835820892E-2,22,65,23,15,10,1,0,28,77,22,3,2,2,2,0,0,0,0,0,136,0]
["Q75","RQ6","ROYAL LIVERPOOL AND BROADGREEN UNIVERSITY HOSPITALS NHS TRUST",76,6918,0.65789473684210531,0.10526315789473684,0.85526315789473684,6.5789473684210523E-2,17,33,17,5,3,1,0,30,35,6,3,2,0,0,0,0,0,0,0,76,0]
["Q75","RVY","SOUTHPORT AND ORMSKIRK HOSPITAL NHS TRUST",47,2979,0.40425531914893614,0.36170212765957449,0.51063829787234039,0.21276595744680851,"*","*","*","*","*","*","*","*","*","*","*","*","*","*","*","*","*","*","*","*","*"]
["Q75","RBN","ST HELENS AND KNOWSLEY HOSPITAL SERVICES NHS TRUST",113,5547,0.76106194690265483,8.8495575221238937E-2,0.84955752212389379,6.1946902654867256E-2,42,44,16,7,3,1,0,72,24,8,5,2,2,0,0,0,2,0,0,111,0]
["Q75","REN","THE CLATTERBRIDGE CANCER CENTRE NHS FOUNDATION TRUST",1,1056,"*","*","*","*","*","*","*","*","*","*","*","*","*","*","*","*","*","*","*","*","*","*","*","*","*"]
["Q75","RET","THE WALTON CENTRE NHS FOUNDATION TRUST",126,1416,0.80158730158730163,8.7301587301587297E-2,0.97619047619047616,1.5873015873015872E-2,59,42,13,7,4,1,0,96,27,1,0,2,0,0,0,0,0,0,0,126,0]
["Q75","RWW","WARRINGTON AND HALTON HOSPITALS NHS FOUNDATION TRUST",189,4043,0.68783068783068779,0.16402116402116401,0.76719576719576721,0.10582010582010581,73,57,27,17,14,1,0,76,69,21,15,5,3,0,0,59,130,0,0,0,0]
["Q75","RY7","WIRRAL COMMUNITY NHS FOUNDATION TRUST",50,1399,0.56000000000000005,0.24,0.8,0.08,11,17,9,8,4,1,0,21,19,6,1,3,0,0,0,0,0,0,0,50,0]
["Q75","RBL","WIRRAL UNIVERSITY TEACHING HOSPITAL NHS FOUNDATION TRUST",390,5927,0.51804123711340211,0.31958762886597936,0.79487179487179482,8.7179487179487175E-2,76,125,62,62,62,1,2,128,182,45,21,13,1,0,0,0,0,0,0,390,0]
["Q76","RJF","BURTON HOSPITALS NHS FOUNDATION TRUST",533,3124,0.66979362101313322,0.12945590994371481,0.7879924953095685,6.5666041275797379E-2,102,255,103,36,33,4,0,120,300,63,25,10,15,0,0,0,78,6,0,449,0]
["Q76","RFS","CHESTERFIELD ROYAL HOSPITAL NHS FOUNDATION TRUST",220,3865,0.54587155963302747,0.31192660550458717,0.73972602739726023,9.1324200913242004E-2,30,89,30,40,28,1,2,55,107,37,17,3,0,1,0,0,77,0,0,143,0]
["Q76","RTG","DERBY TEACHING HOSPITALS NHS FOUNDATION TRUST",894,8304,0.68791946308724827,0.1174496644295302,0.89261744966442957,1.6778523489932886E-2,220,395,167,69,36,7,0,379,419,76,10,5,5,0,0,0,0,0,0,894,0]
["Q76","RY8","DERBYSHIRE COMMUNITY HEALTH SERVICES NHS FOUNDATION TRUST",234,4444,0.60964912280701755,0.23245614035087719,0.82905982905982911,6.4102564102564097E-2,46,93,34,30,23,2,6,92,102,21,13,2,4,0,0,0,0,0,0,234,0]
["Q76","RXM","DERBYSHIRE HEALTHCARE NHS FOUNDATION TRUST",465,2336,0.59002169197396959,0.19522776572668113,0.72629310344827591,9.4827586206896547E-2,62,210,97,53,37,2,4,79,258,78,32,12,5,1,0,0,46,0,0,419,0]
["Q76","RX9","EAST MIDLANDS AMBULANCE SERVICE NHS TRUST",242,3292,0.53941908713692943,0.25726141078838172,0.85123966942148765,4.9586776859504134E-2,46,84,48,29,33,1,1,106,100,24,7,5,0,0,0,0,0,0,0,242,0]
["Q76","RLY","NORTH STAFFORDSHIRE COMBINED HEALTHCARE NHS TRUST",120,1370,0.5083333333333333,0.21666666666666667,0.66666666666666663,0.15,24,37,30,13,13,3,0,36,44,20,16,2,2,0,0,0,0,0,0,120,0]
["Q76","RX1","NOTTINGHAM UNIVERSITY HOSPITALS NHS TRUST",1465,14172,0.62457337883959041,0.16791808873720138,0.86211604095563144,3.7542662116040959E-2,275,640,294,154,92,10,0,488,775,133,32,23,14,0,0,0,0,0,0,1465,0]
["Q76","RHA","NOTTINGHAMSHIRE HEALTHCARE NHS FOUNDATION TRUST",94,8719,0.56989247311827962,0.32258064516129031,0.67741935483870963,0.11827956989247312,23,30,10,15,15,0,1,21,42,15,7,4,4,1,0,0,0,0,0,94,0]
["Q76","RK5","SHERWOOD FOREST HOSPITALS NHS FOUNDATION TRUST",291,4680,0.72569444444444442,0.125,0.89690721649484539,3.4364261168384883E-2,85,124,41,26,10,2,3,116,145,19,8,2,1,0,0,0,176,0,0,115,0]
["Q76","RXW","SHREWSBURY AND TELFORD HOSPITAL NHS TRUST",770,5676,0.48629148629148627,0.31168831168831168,0.62028608582574774,0.17425227568270482,116,221,130,115,101,10,77,168,309,148,87,47,10,1,0,0,0,0,0,770,0]
["Q76","R1D","SHROPSHIRE COMMUNITY HEALTH NHS TRUST",151,1495,0.61589403973509937,0.24503311258278146,0.82119205298013243,7.9470198675496692E-2,31,62,21,22,15,0,0,48,76,15,6,6,0,0,0,0,0,0,0,151,0]
["Q76","RRE","SOUTH STAFFORDSHIRE AND SHROPSHIRE HEALTHCARE NHS FOUNDATION TRUST",236,3619,0.7076271186440678,0.15254237288135594,0.77542372881355937,8.8983050847457626E-2,85,82,33,17,19,0,0,91,92,25,14,7,7,0,0,0,0,0,0,236,0]
["Q76","R1E","STAFFORDSHIRE AND STOKE ON TRENT PARTNERSHIP NHS TRUST",872,4365,0.42660550458715596,0.34862385321100919,0.72706422018348627,8.4862385321100922E-2,121,251,186,163,141,10,0,247,387,154,46,28,10,0,0,0,0,0,0,872,0]
["Q76","RL1","THE ROBERT JONES AND AGNES HUNT ORTHOPAEDIC HOSPITAL NHS FOUNDATION TRUST",31,1388,0.76666666666666672,0.1,1,0,15,8,4,1,2,0,1,27,4,0,0,0,0,0,0,0,0,0,0,31,0]
["Q76","RJE","UNIVERSITY HOSPITALS OF NORTH MIDLANDS NHS TRUST",267,10463,0.52851711026615966,0.30418250950570341,0.7752808988764045,9.3632958801498134E-2,44,95,40,45,35,4,4,84,123,33,15,10,2,0,0,0,0,0,0,267,0]
["Q77","RXT","BIRMINGHAM AND SOLIHULL MENTAL HEALTH NHS FOUNDATION TRUST",132,3866,0.44696969696969696,0.28030303030303028,0.55303030303030298,0.18181818181818182,20,39,35,23,14,1,0,20,53,32,17,7,3,0,0,0,30,0,0,102,0]
["Q77","RYW","BIRMINGHAM COMMUNITY HEALTHCARE NHS FOUNDATION TRUST",261,4778,0.62015503875968991,0.20930232558139536,0.79230769230769227,6.5384615384615388E-2,65,95,41,28,26,3,3,83,123,31,14,3,6,1,0,0,0,0,0,261,0]
["Q77","RQ3","BIRMINGHAM WOMEN'S AND CHILDREN'S NHS FOUNDATION TRUST",158,5443,0.63924050632911389,0.20253164556962025,0.89240506329113922,4.4303797468354431E-2,42,59,25,15,17,0,0,95,46,10,6,1,0,0,0,0,0,0,0,158,0]
["Q77","TAJ","BLACK COUNTRY PARTNERSHIP NHS FOUNDATION TRUST",54,1957,0.66666666666666663,0.18518518518518517,0.77777777777777779,5.5555555555555552E-2,4,32,8,3,7,0,0,7,35,9,3,0,0,0,0,0,0,0,0,54,0]
["Q77","RYG","COVENTRY AND WARWICKSHIRE PARTNERSHIP NHS TRUST",536,3796,0.48694029850746268,0.29477611940298509,0.64925373134328357,0.13619402985074627,78,183,101,91,67,16,0,105,243,98,39,34,17,0,0,0,0,0,0,536,0]
["Q77","RYK","DUDLEY AND WALSALL MENTAL HEALTH PARTNERSHIP NHS TRUST",109,1060,0.66055045871559637,0.11926605504587157,0.78899082568807344,3.669724770642202E-2,20,52,21,7,6,3,0,25,61,17,3,1,2,0,0,0,0,0,0,109,0]
["Q77","RLT","GEORGE ELIOT HOSPITAL NHS TRUST",345,2260,0.73913043478260865,0.1246376811594203,0.81739130434782614,6.0869565217391307E-2,65,190,44,25,18,3,0,79,203,39,18,3,3,0,0,0,0,0,0,345,0]
["Q77","RR1","HEART OF ENGLAND NHS FOUNDATION TRUST",1024,10301,0.560546875,0.2001953125,0.720703125,6.34765625E-2,122,452,241,133,72,4,0,209,529,207,41,24,14,0,0,0,0,19,0,1005,0]
["Q77","RXK","SANDWELL AND WEST BIRMINGHAM HOSPITALS NHS TRUST",151,6765,0.50331125827814571,0.25165562913907286,0.66225165562913912,6.6225165562913912E-2,20,56,37,21,17,0,0,20,80,39,7,3,2,0,0,0,0,0,0,151,0]
["Q77","RJC","SOUTH WARWICKSHIRE NHS FOUNDATION TRUST",781,4210,0.96158770806658134,1.0243277848911651E-2,0.971830985915493,7.6824583866837385E-3,439,312,7,8,0,15,0,386,373,3,6,0,13,0,0,0,0,0,0,781,0]
["Q77","RNA","THE DUDLEY GROUP NHS FOUNDATION TRUST",404,4731,0.64603960396039606,0.21287128712871287,0.81188118811881194,9.9009900990099015E-2,139,122,56,26,60,1,0,196,132,33,16,24,3,0,0,0,0,0,0,404,0]
["Q77","RRJ","THE ROYAL ORTHOPAEDIC HOSPITAL NHS FOUNDATION TRUST",91,1001,0.6333333333333333,0.2,0.89010989010989006,4.3956043956043959E-2,16,41,15,10,8,0,1,44,37,6,3,1,0,0,0,0,0,0,0,91,0]
["Q77","RL4","THE ROYAL WOLVERHAMPTON NHS TRUST",315,8025,0.69841269841269837,0.14285714285714285,0.82222222222222219,6.6666666666666666E-2,92,128,47,25,20,3,0,135,124,34,15,6,1,0,0,0,0,0,0,315,0]
["Q77","RRK","UNIVERSITY HOSPITALS BIRMINGHAM NHS FOUNDATION TRUST",525,8994,0.73091603053435117,9.5419847328244281E-2,0.92925430210325044,2.1032504780114723E-2,152,231,90,27,23,1,1,302,184,22,6,5,4,2,0,0,0,0,0,525,0]
["Q77","RKB","UNIVERSITY HOSPITALS COVENTRY AND WARWICKSHIRE NHS TRUST",448,7654,0.6808035714285714,0.12723214285714285,0.8950892857142857,2.6785714285714284E-2,117,188,78,39,18,8,0,162,239,30,8,4,5,0,0,0,43,0,0,405,0]
["Q77","RBK","WALSALL HEALTHCARE NHS TRUST",693,4429,0.62337662337662336,0.17604617604617603,0.66089466089466087,0.13852813852813853,152,280,113,74,48,26,0,161,297,113,64,32,26,0,0,0,693,0,0,0,0]
["Q77","RYA","WEST MIDLANDS AMBULANCE SERVICE NHS FOUNDATION TRUST",125,4841,0.40799999999999997,0.56799999999999995,0.84,0.12,22,29,3,24,47,0,0,80,25,5,10,5,0,0,0,0,95,0,0,30,0]
["Q77","RWP","WORCESTERSHIRE ACUTE HOSPITALS NHS TRUST",201,5886,0.42786069651741293,0.32835820895522388,0.59701492537313428,0.14925373134328357,25,61,48,48,18,1,0,30,90,50,18,12,1,0,0,0,0,0,0,201,0]
["Q77","R1A","WORCESTERSHIRE HEALTH AND CARE NHS TRUST",95,3796,0.59139784946236562,0.25806451612903225,0.72631578947368425,0.12631578947368421,25,30,14,13,11,0,2,32,37,12,6,6,2,0,0,0,0,0,0,95,0]
["Q78","RC1","BEDFORD HOSPITAL NHS TRUST",167,2736,0.71257485029940115,0.11377245508982035,0.83233532934131738,4.1916167664670656E-2,50,69,27,12,7,2,0,63,76,21,3,4,0,0,0,0,167,0,0,0,0]
["Q78","RWH","EAST AND NORTH HERTFORDSHIRE NHS TRUST",207,5411,0.52427184466019416,0.31067961165048541,0.7439613526570048,0.10144927536231885,32,76,33,34,30,1,1,52,102,32,17,4,0,0,0,0,0,0,0,207,0]
["Q78","RY4","HERTFORDSHIRE COMMUNITY NHS TRUST",787,2696,0.62770012706480305,0.18551461245235071,0.83608640406607371,3.303684879288437E-2,147,347,144,89,57,3,0,238,420,94,16,10,9,0,0,0,0,0,0,787,0]
["Q78","RWR","HERTFORDSHIRE PARTNERSHIP UNIVERSITY NHS FOUNDATION TRUST",167,3031,0.62048192771084343,0.24096385542168675,0.67664670658682635,0.10179640718562874,46,57,23,24,16,0,1,51,62,32,12,5,5,0,0,0,0,0,0,167,0]
["Q78","RNQ","KETTERING GENERAL HOSPITAL NHS FOUNDATION TRUST",205,3909,0.62745098039215685,0.14215686274509803,0.70243902439024386,8.2926829268292687E-2,35,93,44,16,13,3,1,45,99,40,12,5,4,0,0,0,37,0,0,168,0]
["Q78","RT5","LEICESTERSHIRE PARTNERSHIP NHS TRUST",1408,5161,0.61363636363636365,0.19247159090909091,0.74715909090909094,7.2443181818181823E-2,231,633,268,174,97,5,0,287,765,238,65,37,16,0,0,0,0,0,0,1408,0]
["Q78","RY5","LINCOLNSHIRE COMMUNITY HEALTH SERVICES NHS TRUST",647,2040,0.51083591331269351,0.26006191950464397,0.79224806201550391,5.8914728682170542E-2,90,240,145,117,51,3,1,177,334,92,31,7,4,2,0,0,0,0,0,647,0]
["Q78","RP7","LINCOLNSHIRE PARTNERSHIP NHS FOUNDATION TRUST",141,1816,0.72340425531914898,0.1276595744680851,0.85106382978723405,4.9645390070921988E-2,33,69,21,15,3,0,0,51,69,13,5,2,1,0,0,0,23,0,0,118,0]
["Q78","RC9","LUTON AND DUNSTABLE UNIVERSITY HOSPITAL NHS FOUNDATION TRUST",213,3891,0.71830985915492962,0.12676056338028169,0.8779342723004695,4.2253521126760563E-2,43,110,31,17,10,2,0,86,101,14,4,5,3,0,0,0,0,0,0,213,0]
["Q78","RD8","MILTON KEYNES UNIVERSITY HOSPITAL NHS FOUNDATION TRUST",657,3296,0.70579268292682928,0.11890243902439024,0.80792682926829273,3.8109756097560975E-2,164,299,111,47,31,4,1,171,359,94,13,12,7,1,0,0,0,0,0,657,0]
["Q78","RNS","NORTHAMPTON GENERAL HOSPITAL NHS TRUST",409,4732,0.76528117359413206,0.10024449877750612,0.86063569682151586,3.4229828850855744E-2,136,177,53,21,20,2,0,163,189,40,10,4,3,0,0,0,0,0,0,409,0]
["Q78","RP1","NORTHAMPTONSHIRE HEALTHCARE NHS FOUNDATION TRUST",1098,3442,0.689275893675527,0.14848762603116408,0.81959706959706957,4.0293040293040296E-2,255,497,174,92,70,3,7,320,575,144,33,11,9,6,0,0,0,0,0,1098,0]
["Q78","RWD","UNITED LINCOLNSHIRE HOSPITALS NHS TRUST",582,7558,0.47938144329896909,0.29725085910652921,0.62714776632302405,0.14776632302405499,81,198,129,109,64,1,0,124,241,127,62,24,4,0,0,0,0,0,0,582,0]
["Q78","RWE","UNIVERSITY HOSPITALS OF LEICESTER NHS TRUST",761,14384,0.5729303547963206,0.17871222076215507,0.70696452036793689,8.4099868593955324E-2,155,281,163,92,44,26,0,238,300,136,43,21,23,0,0,0,48,0,0,713,0]
["Q78","RWG","WEST HERTFORDSHIRE HOSPITALS NHS TRUST",916,4590,0.53997809419496168,0.23767798466593648,0.64590163934426226,0.13114754098360656,150,343,199,116,101,4,3,170,421,194,69,51,10,1,0,0,39,0,0,877,0]
["Q79","RDD","BASILDON AND THURROCK UNIVERSITY HOSPITALS NHS FOUNDATION TRUST",471,4737,0.42231947483588622,0.26914660831509846,0.64254385964912286,0.10307017543859649,31,162,141,86,37,0,14,36,257,116,35,12,0,15,0,0,0,0,0,471,0]
["Q79","RGT","CAMBRIDGE UNIVERSITY HOSPITALS NHS FOUNDATION TRUST",2399,9509,0.71291266193063096,0.12787296280819055,0.93018394648829428,1.4214046822742474E-2,459,1247,376,188,118,5,6,1141,1084,125,19,15,8,7,0,0,0,0,0,2399,0]
["Q79","RT1","CAMBRIDGESHIRE AND PETERBOROUGH NHS FOUNDATION TRUST",2922,3706,0.58692676249144426,0.16324435318275154,0.70533880903490764,6.6392881587953451E-2,461,1254,674,310,167,56,0,571,1490,588,137,57,79,0,0,0,0,0,0,2922,0]
["Q79","RYV","CAMBRIDGESHIRE COMMUNITY SERVICES NHS TRUST",347,2032,0.74351585014409227,0.1239193083573487,0.90489913544668588,1.4409221902017291E-2,122,136,46,26,17,0,0,183,131,27,3,2,1,0,0,0,0,0,0,347,0]
["Q79","RDE","COLCHESTER HOSPITAL UNIVERSITY NHS FOUNDATION TRUST",109,4501,0.60550458715596334,0.23853211009174313,0.73394495412844041,9.1743119266055051E-2,24,42,17,16,10,0,0,37,43,19,8,2,0,0,0,0,0,0,0,109,0]
["Q79","RYC","EAST OF ENGLAND AMBULANCE SERVICE NHS TRUST",417,4546,0.29468599033816423,0.56763285024154586,0.69024390243902434,0.14634146341463414,37,85,54,78,157,3,3,129,154,58,35,25,9,7,0,0,0,417,0,0,0]
["Q79","R1L","ESSEX PARTNERSHIP UNIVERSITY NHS FOUNDATION TRUST",147,6058,0.65986394557823125,0.17006802721088435,0.74149659863945583,6.8027210884353748E-2,29,68,24,13,12,1,0,42,67,27,8,2,1,0,0,0,115,0,0,32,0]
["Q79","RGQ","IPSWICH HOSPITAL NHS TRUST",258,4259,0.63953488372093026,0.17829457364341086,0.86821705426356588,3.4883720930232558E-2,48,117,45,28,18,2,0,86,138,22,4,5,3,0,0,0,0,0,0,258,0]
["Q79","RGP","JAMES PAGET UNIVERSITY HOSPITALS NHS FOUNDATION TRUST",308,3068,0.69381107491856675,0.12377850162866449,0.81818181818181823,5.1948051948051951E-2,75,138,54,25,13,2,1,112,140,38,9,7,2,0,0,0,24,0,0,284,0]
["Q79","RM1","NORFOLK AND NORWICH UNIVERSITY HOSPITALS NHS FOUNDATION TRUST",67,7375,0.44776119402985076,0.31343283582089554,0.74626865671641796,0.13432835820895522,12,18,16,13,8,0,0,25,25,8,4,5,0,0,0,0,0,0,0,67,0]
["Q79","RMY","NORFOLK AND SUFFOLK NHS FOUNDATION TRUST",47,3776,0.7021276595744681,8.5106382978723402E-2,0.7021276595744681,0.10638297872340426,10,23,10,2,2,0,0,7,26,8,4,1,1,0,0,0,0,0,0,47,0]
["Q79","RY3","NORFOLK COMMUNITY HEALTH AND CARE NHS TRUST",539,2767,0.55555555555555558,0.20662768031189083,0.79142300194931769,3.7037037037037035E-2,101,184,110,70,36,12,26,170,236,67,12,7,21,26,0,0,0,0,0,539,0]
["Q79","RGN","NORTH WEST ANGLIA NHS FOUNDATION TRUST",563,5804,0.59252669039145911,0.199288256227758,0.81461675579322634,4.9910873440285206E-2,121,212,114,72,40,3,1,202,255,73,21,7,3,2,0,0,120,0,0,443,0]
["Q79","RGM","PAPWORTH HOSPITAL NHS FOUNDATION TRUST",35,1761,0.51428571428571423,0.37142857142857144,0.91428571428571426,5.7142857142857141E-2,11,7,4,7,6,0,0,19,13,1,2,0,0,0,0,0,0,0,0,35,0]
["Q79","RAJ","SOUTHEND UNIVERSITY HOSPITAL NHS FOUNDATION TRUST",608,4277,0.44736842105263158,0.24013157894736842,0.66611842105263153,9.375E-2,50,222,190,105,41,0,0,74,331,144,41,16,2,0,0,0,0,0,0,608,0]
["Q79","RQW","THE PRINCESS ALEXANDRA HOSPITAL NHS TRUST",637,3225,0.560126582278481,0.22468354430379747,0.75118858954041201,7.2900158478605384E-2,98,256,129,88,54,7,5,139,335,105,31,15,6,6,0,0,0,0,0,637,0]
["Q79","RCX","THE QUEEN ELIZABETH HOSPITAL, KING'S LYNN, NHS FOUNDATION TRUST",459,3143,0.54248366013071891,0.23093681917211328,0.73638344226579522,0.10239651416122005,77,172,101,68,38,3,0,106,232,70,32,15,4,0,0,0,35,0,0,424,0]
["Q79","RGR","WEST SUFFOLK NHS FOUNDATION TRUST",925,3405,0.8205689277899344,8.2056892778993432E-2,0.94565217391304346,1.0869565217391304E-2,379,371,89,45,30,0,11,504,366,38,4,6,2,5,0,0,0,0,0,925,0]
["Q80","RJ8","CORNWALL PARTNERSHIP NHS FOUNDATION TRUST",331,3598,0.6012084592145015,0.22658610271903323,0.8036253776435045,7.2507552870090641E-2,67,132,57,36,39,0,0,112,154,40,10,14,1,0,0,0,0,0,0,331,0]
["Q80","RWV","DEVON PARTNERSHIP NHS TRUST",601,2433,0.61730449251247921,0.20798668885191349,0.70549084858569056,0.10815307820299501,124,247,104,66,59,1,0,150,274,105,43,22,7,0,0,0,0,0,0,601,0]
["Q80","RVJ","NORTH BRISTOL NHS TRUST",208,7942,0.4251207729468599,0.33816425120772947,0.75,0.10096153846153846,13,75,48,36,34,1,1,51,105,29,13,8,2,0,0,0,0,0,0,208,0]
["Q80","RBZ","NORTHERN DEVON HEALTHCARE NHS TRUST",421,3049,0.71971496437054627,0.10926365795724466,0.7220902612826603,9.0261282660332537E-2,120,183,72,32,14,0,0,116,188,79,18,20,0,0,0,0,0,0,0,421,0]
["Q80","RK9","PLYMOUTH HOSPITALS NHS TRUST",173,6744,0.46511627906976744,0.34302325581395349,0.75144508670520227,8.6705202312138727E-2,23,57,32,33,26,1,1,51,79,27,11,4,1,0,0,0,0,0,0,173,0]
["Q80","REF","ROYAL CORNWALL HOSPITALS NHS TRUST",842,5273,0.53873659117997619,0.26460071513706795,0.63571428571428568,0.14404761904761904,91,361,163,144,78,2,3,120,414,180,84,37,5,2,0,0,0,0,0,842,0]
["Q80","RH8","ROYAL DEVON AND EXETER NHS FOUNDATION TRUST",309,7756,0.72312703583061888,7.4918566775244305E-2,0.9285714285714286,1.2987012987012988E-2,75,147,61,13,10,1,2,164,122,16,2,2,2,1,0,0,0,0,0,309,0]
["Q80","RH5","SOMERSET PARTNERSHIP NHS FOUNDATION TRUST",211,3726,0.61611374407582942,0.16113744075829384,0.76303317535545023,5.6872037914691941E-2,41,89,47,23,11,0,0,68,93,38,10,2,0,0,0,0,0,0,0,211,0]
["Q80","RYF","SOUTH WESTERN AMBULANCE SERVICE NHS FOUNDATION TRUST",554,4213,0.38656987295825773,0.43738656987295826,0.80831826401446649,4.701627486437613E-2,73,140,94,93,148,3,3,256,191,72,13,13,8,1,0,5,0,0,0,549,0]
["Q80","RBA","TAUNTON AND SOMERSET NHS FOUNDATION TRUST",933,4292,0.83243823845327602,6.2298603651987111E-2,0.96355841371918538,6.4308681672025723E-3,349,426,98,48,10,0,2,549,350,27,5,1,1,0,0,0,0,0,0,933,0]
["Q80","RA9","TORBAY AND SOUTH DEVON NHS FOUNDATION TRUST",1045,5925,0.62966507177033493,0.1598086124401914,0.86220095693779908,3.2535885167464113E-2,222,436,211,108,59,9,0,417,484,102,26,8,8,0,0,0,0,0,0,1045,0]
["Q80","RA7","UNIVERSITY HOSPITALS BRISTOL NHS FOUNDATION TRUST",261,8860,0.6053639846743295,0.21455938697318008,0.86206896551724133,2.681992337164751E-2,55,103,45,34,22,2,0,110,115,26,4,3,3,0,0,0,0,0,0,261,0]
["Q80","RA3","WESTON AREA HEALTH NHS TRUST",178,1681,0.4438202247191011,0.34831460674157305,0.6235955056179775,0.14606741573033707,23,56,35,32,30,2,0,33,78,39,20,6,2,0,0,0,0,0,0,178,0]
["Q80","RA4","YEOVIL DISTRICT HOSPITAL NHS FOUNDATION TRUST",23,2222,0.52173913043478259,4.3478260869565216E-2,0.73913043478260865,4.3478260869565216E-2,7,5,10,0,1,0,0,9,8,4,1,0,1,0,0,0,0,0,0,23,0]
["Q81","RTK","ASHFORD AND ST PETER'S HOSPITALS NHS FOUNDATION TRUST",134,3684,0.65671641791044777,0.20149253731343283,0.80597014925373134,5.9701492537313432E-2,35,53,17,13,14,2,0,44,64,16,6,2,2,0,0,0,0,0,0,134,0]
["Q81","RXH","BRIGHTON AND SUSSEX UNIVERSITY HOSPITALS NHS TRUST",1513,7940,0.41860465116279072,0.33023255813953489,0.64177131526768005,0.12161269001982816,155,475,369,289,208,9,8,259,712,348,112,72,10,0,0,0,0,0,0,1513,0]
["Q81","RN7","DARTFORD AND GRAVESHAM NHS TRUST",41,3143,0.8,0.05,0.95121951219512191,0,12,20,6,1,1,0,1,16,23,2,0,0,0,0,0,0,1,0,0,40,0]
["Q81","RVV","EAST KENT HOSPITALS UNIVERSITY NHS FOUNDATION TRUST",2231,7635,0.48834080717488787,0.2968609865470852,0.69403319874383129,0.12113055181695828,302,787,471,358,304,8,1,460,1087,395,188,82,17,2,0,0,0,0,0,2231,0]
["Q81","RXC","EAST SUSSEX HEALTHCARE NHS TRUST",1176,6740,0.60510638297872343,0.16425531914893618,0.79761904761904767,5.2721088435374153E-2,191,520,265,131,62,6,1,269,669,167,46,16,9,0,0,0,0,0,0,1176,0]
["Q81","RDU","FRIMLEY HEALTH NHS FOUNDATION TRUST",1907,8893,0.6868740115972588,0.14074855034264627,0.88386757750919598,2.8901734104046242E-2,470,833,315,158,109,12,10,813,869,156,44,11,10,4,0,0,0,0,0,1907,0]
["Q81","RXY","KENT AND MEDWAY NHS AND SOCIAL CARE PARTNERSHIP TRUST",1046,3205,0.59516908212560382,0.20096618357487922,0.67976989453499526,0.11505273250239693,206,410,206,113,95,5,11,204,505,202,68,52,12,3,0,0,0,0,0,1046,0]
["Q81","RYY","KENT COMMUNITY HEALTH NHS FOUNDATION TRUST",290,4799,0.65743944636678198,0.16608996539792387,0.84827586206896555,2.7586206896551724E-2,76,114,49,28,20,2,1,105,141,32,4,4,4,0,0,0,0,0,0,290,0]
["Q81","RWF","MAIDSTONE AND TUNBRIDGE WELLS NHS TRUST",33,5607,0.60606060606060608,0.18181818181818182,0.66666666666666663,6.0606060606060608E-2,1,19,7,5,1,0,0,4,18,7,2,0,2,0,0,0,0,0,0,33,0]
["Q81","RPA","MEDWAY NHS FOUNDATION TRUST",851,4390,0.527122641509434,0.27948113207547171,0.66588235294117648,0.13411764705882354,123,324,161,129,108,3,3,163,403,166,76,38,4,1,0,0,103,0,0,748,0]
["Q81","RPC","QUEEN VICTORIA HOSPITAL NHS FOUNDATION TRUST",212,959,0.660377358490566,0.19811320754716982,0.91981132075471694,2.358490566037736E-2,70,70,28,24,18,2,0,147,48,11,3,2,1,0,0,0,0,0,0,212,0]
["Q81","RA2","ROYAL SURREY COUNTY HOSPITAL NHS FOUNDATION TRUST",44,3714,0.58536585365853655,0.29268292682926828,0.88636363636363635,4.5454545454545456E-2,10,14,4,5,7,1,3,21,18,3,1,1,0,0,0,0,0,0,0,44,0]
["Q81","RYD","SOUTH EAST COAST AMBULANCE SERVICE NHS FOUNDATION TRUST",1019,3277,0.31692913385826771,0.42618110236220474,0.75272007912957473,9.2977250247279916E-2,63,259,253,245,188,8,3,334,427,152,61,33,4,8,0,0,0,0,0,1019,0]
["Q81","RXX","SURREY AND BORDERS PARTNERSHIP NHS FOUNDATION TRUST",22,2408,0.95454545454545459,0,0.95454545454545459,4.5454545454545456E-2,9,12,1,0,0,0,0,11,10,0,1,0,0,0,0,0,0,0,0,22,0]
["Q81","RTP","SURREY AND SUSSEX HEALTHCARE NHS TRUST",407,3950,0.86750000000000005,6.7500000000000004E-2,0.94581280788177335,2.2167487684729065E-2,199,148,25,19,8,1,7,229,155,12,6,3,1,1,0,0,0,0,0,407,0]
["Q81","RDR","SUSSEX COMMUNITY NHS FOUNDATION TRUST",880,4671,0.64310148232611175,0.14709236031927023,0.84090909090909094,3.7499999999999999E-2,202,362,181,77,52,3,3,310,430,93,17,16,14,0,0,0,0,0,0,880,0]
["Q81","RX2","SUSSEX PARTNERSHIP NHS FOUNDATION TRUST",100,4333,0.63,0.16,0.74,0.08,14,49,21,9,7,0,0,21,53,17,4,4,1,0,0,0,0,0,0,100,0]
["Q81","RYR","WESTERN SUSSEX HOSPITALS NHS FOUNDATION TRUST",855,6801,0.82649472450175854,6.096131301289566E-2,0.91985645933014359,2.2727272727272728E-2,263,442,95,34,18,1,2,345,424,48,12,7,0,19,0,0,855,0,0,0,0]
["Q82","RTQ","2GETHER NHS FOUNDATION TRUST",160,2053,0.73124999999999996,0.13125000000000001,0.875,2.5000000000000001E-2,46,71,22,11,10,0,0,63,77,14,3,1,2,0,0,0,0,0,0,160,0]
["Q82","RVN","AVON AND WILTSHIRE MENTAL HEALTH PARTNERSHIP NHS TRUST",274,4030,0.6058394160583942,0.20802919708029197,0.70437956204379559,9.4890510948905105E-2,42,124,46,39,18,5,0,52,141,41,15,11,14,0,0,0,42,0,0,232,0]
["Q82","RWX","BERKSHIRE HEALTHCARE NHS FOUNDATION TRUST",1275,4147,0.70718232044198892,0.13338595106550907,0.84264358772619985,3.8552321007081038E-2,330,566,195,110,59,7,8,381,690,139,32,17,12,4,0,0,0,0,0,1275,0]
["Q82","RXQ","BUCKINGHAMSHIRE HEALTHCARE NHS TRUST",426,5874,0.60377358490566035,0.16273584905660377,0.8,3.2941176470588238E-2,48,208,98,51,18,1,2,88,252,69,9,5,2,1,0,0,426,0,0,0,0]
["Q82","R1J","GLOUCESTERSHIRE CARE SERVICES NHS TRUST",147,2561,0.52777777777777779,0.2986111111111111,0.87671232876712324,2.7397260273972601E-2,21,55,25,32,11,0,3,51,77,14,2,2,0,1,0,0,7,0,0,140,0]
["Q82","RTE","GLOUCESTERSHIRE HOSPITALS NHS FOUNDATION TRUST",235,7436,0.5446808510638298,0.22553191489361701,0.74042553191489358,9.3617021276595741E-2,32,96,53,34,19,1,0,47,127,35,18,4,4,0,0,0,0,0,0,235,0]
["Q82","RN3","GREAT WESTERN HOSPITALS NHS FOUNDATION TRUST",1333,5370,0.59377372817008356,0.18678815489749431,0.78398791540785495,6.7220543806646521E-2,186,596,276,178,68,13,16,303,735,185,65,24,12,9,0,0,0,0,0,1333,0]
["Q82","RNU","OXFORD HEALTH NHS FOUNDATION TRUST",1346,4939,0.59835452505609577,0.20044876589379207,0.76813762154076293,5.9087509349289455E-2,238,562,263,167,101,6,9,351,676,217,50,29,14,9,0,0,0,0,0,1346,0]
["Q82","RTH","OXFORD UNIVERSITY HOSPITALS NHS FOUNDATION TRUST",1577,11674,0.57453614843250156,0.20921305182341651,0.85850860420650099,3.5054174633524539E-2,249,649,336,204,123,2,14,598,749,164,39,16,3,8,0,0,7,0,0,1570,0]
["Q82","RHW","ROYAL BERKSHIRE NHS FOUNDATION TRUST",1049,5129,0.60594439117929055,0.17257909875359539,0.85302593659942361,3.2660902977905859E-2,238,394,229,114,66,2,6,368,520,117,21,13,2,8,0,0,0,0,0,1049,0]
["Q82","RD1","ROYAL UNITED HOSPITALS BATH NHS FOUNDATION TRUST",382,5080,0.61518324607329844,0.17015706806282724,0.83769633507853403,4.1884816753926704E-2,70,165,78,42,23,4,0,146,174,44,11,5,2,0,0,0,0,0,0,382,0]
["Q82","RNZ","SALISBURY NHS FOUNDATION TRUST",83,3226,0.80722891566265065,9.6385542168674704E-2,0.91566265060240959,4.8192771084337352E-2,38,29,8,5,3,0,0,55,21,3,2,2,0,0,0,0,0,0,0,83,0]
["Q82","RYE","SOUTH CENTRAL AMBULANCE SERVICE NHS FOUNDATION TRUST",260,3552,0.48076923076923078,0.31923076923076921,0.86538461538461542,7.3076923076923081E-2,39,86,49,43,40,3,0,120,105,14,12,7,2,0,0,0,0,0,0,260,0]
["Q83","RMC","BOLTON NHS FOUNDATION TRUST",1371,5689,0.71783625730994149,0.11403508771929824,0.84937545922116087,2.8655400440852314E-2,306,676,226,112,44,4,3,383,773,159,32,7,7,10,0,0,0,0,0,1371,0]
["Q83","RY2","BRIDGEWATER COMMUNITY HEALTHCARE NHS FOUNDATION TRUST",140,2938,0.36428571428571427,0.35714285714285715,0.75539568345323738,0.10071942446043165,16,35,38,21,29,1,0,40,65,18,9,5,2,1,0,0,0,0,0,140,0]
["Q83","RW3","CENTRAL MANCHESTER UNIVERSITY HOSPITALS NHS FOUNDATION TRUST",2587,12888,0.63239875389408096,0.17056074766355139,0.80770727909692486,5.7220708446866483E-2,534,1090,497,274,164,9,19,756,1319,322,102,45,25,18,0,0,0,0,0,2587,0]
["Q83","RXV","GREATER MANCHESTER MENTAL HEALTH NHS FOUNDATION TRUST",1092,4608,0.63602941176470584,0.19301470588235295,0.71651376146788992,0.10275229357798166,263,429,182,110,100,4,4,285,496,174,63,49,23,2,0,0,0,0,0,1092,0]
["Q83","RX7","NORTH WEST AMBULANCE SERVICE NHS TRUST",77,5778,0.57894736842105265,0.26315789473684209,0.80263157894736847,0.11842105263157894,20,24,12,8,12,0,1,35,26,6,4,5,0,1,0,0,0,0,0,77,0]
["Q83","RW6","PENNINE ACUTE HOSPITALS NHS TRUST",327,9548,0.48318042813455658,0.27828746177370028,0.61467889908256879,0.15596330275229359,52,106,75,55,36,3,0,64,137,70,37,14,5,0,0,0,132,0,0,195,0]
["Q83","RT2","PENNINE CARE NHS FOUNDATION TRUST",257,5300,0.63035019455252916,0.17509727626459143,0.71595330739299612,6.6147859922178989E-2,56,106,45,33,12,5,0,67,117,51,10,7,5,0,0,0,0,0,0,257,0]
["Q83","RM3","SALFORD ROYAL NHS FOUNDATION TRUST",1940,7572,0.62558259968928021,0.18643190056965303,0.88089073019161057,3.3661315380631794E-2,463,745,355,207,153,8,9,932,769,153,37,28,12,9,0,0,0,0,0,1940,0]
["Q83","RWJ","STOCKPORT NHS FOUNDATION TRUST",1580,5214,0.54050632911392404,0.22721518987341771,0.76265822784810122,7.1518987341772158E-2,260,594,356,232,127,11,0,455,750,240,88,25,22,0,0,0,0,0,0,1580,0]
["Q83","RMP","TAMESIDE AND GLOSSOP INTEGRATED CARE NHS FOUNDATION TRUST",328,3751,0.75535168195718649,8.8685015290519878E-2,0.80981595092024539,2.7607361963190184E-2,102,145,49,24,5,2,1,119,145,50,9,0,3,2,0,0,0,0,0,328,0]
["Q83","RBV","THE CHRISTIE NHS FOUNDATION TRUST",850,2686,0.71530249110320288,0.13523131672597866,0.96335697399527187,7.0921985815602835E-3,306,297,120,61,53,6,7,649,166,17,3,3,8,4,0,0,7,0,0,843,0]
["Q83","RM2","UNIVERSITY HOSPITAL OF SOUTH MANCHESTER NHS FOUNDATION TRUST",763,6478,0.62627737226277369,0.16934306569343066,0.84087591240875914,2.9197080291970802E-2,135,294,138,86,30,2,78,256,320,78,12,8,11,78,0,0,0,0,0,763,0]
["Q83","RRF","WRIGHTINGTON, WIGAN AND LEIGH NHS FOUNDATION TRUST",268,4993,0.71268656716417911,8.9552238805970144E-2,0.81343283582089554,5.2238805970149252E-2,92,99,45,12,12,8,0,113,105,30,6,8,6,0,0,0,116,0,0,152,0]
["Q84","RXL","BLACKPOOL TEACHING HOSPITALS NHS FOUNDATION TRUST",213,6859,0.5821596244131455,0.2300469483568075,0.70422535211267601,7.9812206572769953E-2,51,73,33,33,16,7,0,64,86,36,11,6,10,0,0,0,19,2,0,192,0]
["Q84","RXR","EAST LANCASHIRE HOSPITALS NHS TRUST",1678,8028,0.72917914919113247,0.1024565608148592,0.82074340527577938,4.6762589928057555E-2,418,799,277,109,62,4,9,494,875,216,55,23,5,10,0,0,0,0,0,1678,0]
["Q84","RW5","LANCASHIRE CARE NHS FOUNDATION TRUST",1455,6528,0.51752577319587634,0.27353951890034367,0.71408934707903782,0.10309278350515463,211,542,295,222,176,9,0,276,763,250,95,55,16,0,0,0,0,0,0,1455,0]
["Q84","RXN","LANCASHIRE TEACHING HOSPITALS NHS FOUNDATION TRUST",603,7817,0.63893510815307819,0.15973377703826955,0.8,6.1666666666666668E-2,120,264,114,64,32,7,2,154,326,77,29,8,6,3,0,0,0,0,0,603,0]

{"sheet":"BS","index":4,"n_rows":230,"n_cols":24,"rows_kept":230,"cut":false,"hidden":true,"merged":[]}
[null,"Sort","Region (Local Office) code","Region (Local Office) name","Org code","Org name",null,"Sort Lists:","Sort range…","Sort range…","Region (Local Office) Reference Lists:","Code…","Name…","Region (Local Office) Linked Lists:","Code…","Name…","Orgs Reference List:","Code…","Code…","Name…",null,"Orgs Linked List:","Code…","Name…"]
["Region (Local Office)",1,1,1,"N/A","N/A",null,null,"Region (LO) Code","Region (LO) Code",null,"Q70","NHS England Wessex",null,"Q72","NHS England Yorkshire & Humber",null,"Q70","RBD","DORSET COUNTY HOSPITAL NHS FOUNDATION TRUST",null,null,"R1A","2GETHER NHS FOUNDATION TRUST"]
["Orgs",1,1,1,1,1,null,null,"Region (Local Office) Name","Org Code",null,"Q71","NHS England London",null,"Q74","NHS England Cumbria & North East",null,"Q70","RDY","DORSET HEALTHCARE UNIVERSITY NHS FOUNDATION TRUST",null,null,"R1C","AINTREE UNIVERSITY HOSPITAL NHS FOUNDATION TRUST"]
[null,null,null,null,null,null,null,null,"Total Responses","Org Name",null,"Q72","NHS England Yorkshire & Humber",null,"Q75","NHS England Cheshire & Merseyside",null,"Q70","RN5","HAMPSHIRE HOSPITALS NHS FOUNDATION TRUST",null,null,"R1D","AIREDALE NHS FOUNDATION TRUST"]
[null,null,null,null,null,null,null,null,"HSCIC Workforce Headcount","Total Responses",null,"Q74","NHS England Cumbria & North East",null,"Q83","NHS England Greater Manchester",null,"Q70","R1F","ISLE OF WIGHT NHS TRUST",null,null,"R1E","ALDER HEY CHILDREN'S NHS FOUNDATION TRUST"]
[null,null,null,null,null,null,null,null,"Work - Percentage Recommended","HSCIC Workforce Headcount",null,"Q75","NHS England Cheshire & Merseyside",null,"Q84","NHS England Lancashire",null,"Q70","RD3","POOLE HOSPITAL NHS FOUNDATION TRUST",null,null,"R1F","ASHFORD AND ST PETER'S HOSPITALS NHS FOUNDATION TRUST"]
[null,null,null,null,null,null,null,null,"Work - Percentage Not  Recommended","Work - Percentage Recommended",null,"Q76","NHS England North Midlands",null,"Q76","NHS England North Midlands",null,"Q70","RHU","PORTSMOUTH HOSPITALS NHS TRUST",null,null,"R1H","AVON AND WILTSHIRE MENTAL HEALTH PARTNERSHIP NHS TRUST"]
[null,null,null,null,null,null,null,null,"Care - Percentage Recommended","Work - Percentage Not  Recommended",null,"Q77","NHS England West Midlands",null,"Q77","NHS England West Midlands",null,"Q70","R1C","SOLENT NHS TRUST",null,null,"R1J","BARKING, HAVERING AND REDBRIDGE UNIVERSITY HOSPITALS NHS TRUST"]
[null,null,null,null,null,null,null,null,"Care - Percentage Not  Recommended","Care - Percentage Recommended",null,"Q78","NHS England Central Midlands",null,"Q78","NHS England Central Midlands",null,"Q70","RW1","SOUTHERN HEALTH NHS FOUNDATION TRUST",null,null,"R1K","BARNSLEY HOSPITAL NHS FOUNDATION TRUST"]
[null,null,null,null,null,null,null,null,"Work - Extremely Likely","Care - Percentage Not  Recommended",null,"Q79","NHS England East",null,"Q79","NHS England East",null,"Q70","RDZ","THE ROYAL BOURNEMOUTH AND CHRISTCHURCH HOSPITALS NHS FOUNDATION TRUST",null,null,"R1L","BARTS HEALTH NHS TRUST"]
[null,null,null,null,null,null,null,null,"Work - Likely","Work - Extremely Likely",null,"Q80","NHS England South West",null,"Q80","NHS England South West",null,"Q70","RHM","UNIVERSITY HOSPITAL SOUTHAMPTON NHS FOUNDATION TRUST",null,null,"RA2","BASILDON AND THURROCK UNIVERSITY HOSPITALS NHS FOUNDATION TRUST"]
[null,null,null,null,null,null,null,null,"Work - Neither","Work - Likely",null,"Q81","NHS England South East",null,"Q81","NHS England South East",null,"Q71","RF4","BARKING, HAVERING AND REDBRIDGE UNIVERSITY HOSPITALS NHS TRUST",null,null,"RA3","BEDFORD HOSPITAL NHS TRUST"]
[null,null,null,null,null,null,null,null,"Work - Unlikely","Work - Neither",null,"Q82","NHS England South Central",null,"Q82","NHS England South Central",null,"Q71","R1H","BARTS HEALTH NHS TRUST",null,null,"RA4","BERKSHIRE HEALTHCARE NHS FOUNDATION TRUST"]
[null,null,null,null,null,null,null,null,"Work - Extremely Unlikely","Work - Unlikely",null,"Q83","NHS England Greater Manchester",null,"Q70","NHS England Wessex",null,"Q71","TAF","CAMDEN AND ISLINGTON NHS FOUNDATION TRUST",null,null,"RA7","BIRMINGHAM AND SOLIHULL MENTAL HEALTH NHS FOUNDATION TRUST"]
[null,null,null,null,null,null,null,null,"Work - Don't Know","Work - Extremely Unlikely",null,"Q84","NHS England Lancashire",null,"Q71","NHS England London",null,"Q71","RV3","CENTRAL AND NORTH WEST LONDON NHS FOUNDATION TRUST",null,null,"RA9","BIRMINGHAM COMMUNITY HEALTHCARE NHS FOUNDATION TRUST"]
[null,null,null,null,null,null,null,null,"Work - No Response","Work - Don't Know",null,null,null,null,null,null,null,"Q71","RYX","CENTRAL LONDON COMMUNITY HEALTHCARE NHS TRUST",null,null,"RAE","BIRMINGHAM WOMEN'S AND CHILDREN'S NHS FOUNDATION TRUST"]
[null,null,null,null,null,null,null,null,"Care - Extremely Likely","Work - No Response",null,null,null,null,null,null,null,"Q71","RQM","CHELSEA AND WESTMINSTER HOSPITAL NHS FOUNDATION TRUST",null,null,"RAJ","BLACK COUNTRY PARTNERSHIP NHS FOUNDATION TRUST"]
[null,null,null,null,null,null,null,null,"Care - Likely","Care - Extremely Likely",null,null,null,null,null,null,null,"Q71","RJ6","CROYDON HEALTH SERVICES NHS TRUST",null,null,"RAN","BLACKPOOL TEACHING HOSPITALS NHS FOUNDATION TRUST"]
[null,null,null,null,null,null,null,null,"Care - Neither","Care - Likely",null,null,null,null,null,null,null,"Q71","RWK","EAST LONDON NHS FOUNDATION TRUST",null,null,"RAP","BOLTON NHS FOUNDATION TRUST"]
[null,null,null,null,null,null,null,null,"Care - Unlikely","Care - Neither",null,null,null,null,null,null,null,"Q71","RVR","EPSOM AND ST HELIER UNIVERSITY HOSPITALS NHS TRUST",null,null,"RAS","BRADFORD DISTRICT CARE NHS FOUNDATION TRUST"]
[null,null,null,null,null,null,null,null,"Care - Extremely Unlikely","Care - Unlikely",null,null,null,null,null,null,null,"Q71","RP4","GREAT ORMOND STREET HOSPITAL FOR CHILDREN NHS FOUNDATION TRUST",null,null,"RAT","BRADFORD TEACHING HOSPITALS NHS FOUNDATION TRUST"]
[null,null,null,null,null,null,null,null,"Care - Don't Know","Care - Extremely Unlikely",null,null,null,null,null,null,null,"Q71","RJ1","GUY'S AND ST THOMAS' NHS FOUNDATION TRUST",null,null,"RAX","BRIDGEWATER COMMUNITY HEALTHCARE NHS FOUNDATION TRUST"]
[null,null,null,null,null,null,null,null,"Care - No Response","Care - Don't Know",null,null,null,null,null,null,null,"Q71","RQX","HOMERTON UNIVERSITY HOSPITAL NHS FOUNDATION TRUST",null,null,"RBA","BRIGHTON AND SUSSEX UNIVERSITY HOSPITALS NHS TRUST"]
[null,null,null,null,null,null,null,null,null,"Care - No Response",null,null,null,null,null,null,null,"Q71","RY9","HOUNSLOW AND RICHMOND COMMUNITY HEALTHCARE NHS TRUST",null,null,"RBD","BUCKINGHAMSHIRE HEALTHCARE NHS TRUST"]
[null,null,null,null,null,null,null,null,null,"SMS/Text/\nSmartphone app",null,null,null,null,null,null,null,"Q71","RYJ","IMPERIAL COLLEGE HEALTHCARE NHS TRUST",null,null,"RBK","BURTON HOSPITALS NHS FOUNDATION TRUST"]
[null,null,null,null,null,null,null,null,null,"Electronic tablet/Kiosk",null,null,null,null,null,null,null,"Q71","RJZ","KING'S COLLEGE HOSPITAL NHS FOUNDATION TRUST",null,null,"RBL","CALDERDALE AND HUDDERSFIELD NHS FOUNDATION TRUST"]
[null,null,null,null,null,null,null,null,null,"Paper survey at work",null,null,null,null,null,null,null,"Q71","RAX","KINGSTON HOSPITAL NHS FOUNDATION TRUST",null,null,"RBN","CAMBRIDGE UNIVERSITY HOSPITALS NHS FOUNDATION TRUST"]
[null,null,null,null,null,null,null,null,null,"Paper survey sent to home ",null,null,null,null,null,null,null,"Q71","RJ2","LEWISHAM AND GREENWICH NHS TRUST",null,null,"RBQ","CAMBRIDGESHIRE AND PETERBOROUGH NHS FOUNDATION TRUST"]
[null,null,null,null,null,null,null,null,null,"Telephone survey",null,null,null,null,null,null,null,"Q71","RRU","LONDON AMBULANCE SERVICE NHS TRUST",null,null,"RBS","CAMBRIDGESHIRE COMMUNITY SERVICES NHS TRUST"]
[null,null,null,null,null,null,null,null,null,"Online survey",null,null,null,null,null,null,null,"Q71","R1K","LONDON NORTH WEST HEALTHCARE NHS TRUST",null,null,"RBT","CAMDEN AND ISLINGTON NHS FOUNDATION TRUST"]
[null,null,null,null,null,null,null,null,null,"Other",null,null,null,null,null,null,null,"Q71","RP6","MOORFIELDS EYE HOSPITAL NHS FOUNDATION TRUST",null,null,"RBV","CENTRAL AND NORTH WEST LONDON NHS FOUNDATION TRUST"]
[null,null,null,null,null,null,null,null,null,null,null,null,null,null,null,null,null,"Q71","RAT","NORTH EAST LONDON NHS FOUNDATION TRUST",null,null,"RBZ","CENTRAL LONDON COMMUNITY HEALTHCARE NHS TRUST"]
[null,null,null,null,null,null,null,null,null,null,null,null,null,null,null,null,null,"Q71","RAP","NORTH MIDDLESEX UNIVERSITY HOSPITAL NHS TRUST",null,null,"RC1","CENTRAL MANCHESTER UNIVERSITY HOSPITALS NHS FOUNDATION TRUST"]
[null,null,null,null,null,null,null,null,null,null,null,null,null,null,null,null,null,"Q71","RPG","OXLEAS NHS FOUNDATION TRUST",null,null,"RC9","CHELSEA AND WESTMINSTER HOSPITAL NHS FOUNDATION TRUST"]
[null,null,null,null,null,null,null,null,null,null,null,null,null,null,null,null,null,"Q71","RT3","ROYAL BROMPTON & HAREFIELD NHS FOUNDATION TRUST",null,null,"RCB","CHESHIRE AND WIRRAL PARTNERSHIP NHS FOUNDATION TRUST"]
[null,null,null,null,null,null,null,null,null,null,null,null,null,null,null,null,null,"Q71","RAN","ROYAL NATIONAL ORTHOPAEDIC HOSPITAL NHS TRUST",null,null,"RCD","CHESTERFIELD ROYAL HOSPITAL NHS FOUNDATION TRUST"]
[null,null,null,null,null,null,null,null,null,null,null,null,null,null,null,null,null,"Q71","RV5","SOUTH LONDON AND MAUDSLEY NHS FOUNDATION TRUST",null,null,"RCF","CITY HOSPITALS SUNDERLAND NHS FOUNDATION TRUST"]
[null,null,null,null,null,null,null,null,null,null,null,null,null,null,null,null,null,"Q71","RQY","SOUTH WEST LONDON AND ST GEORGE'S MENTAL HEALTH NHS TRUST",null,null,"RCU","COLCHESTER HOSPITAL UNIVERSITY NHS FOUNDATION TRUST"]
[null,null,null,null,null,null,null,null,null,null,null,null,null,null,null,null,null,"Q71","RJ7","ST GEORGE'S UNIVERSITY HOSPITALS NHS FOUNDATION TRUST",null,null,"RCX","CORNWALL PARTNERSHIP NHS FOUNDATION TRUST"]
[null,null,null,null,null,null,null,null,null,null,null,null,null,null,null,null,null,"Q71","RNK","TAVISTOCK AND PORTMAN NHS FOUNDATION TRUST",null,null,"RD1","COUNTESS OF CHESTER HOSPITAL NHS FOUNDATION TRUST"]
[null,null,null,null,null,null,null,null,null,null,null,null,null,null,null,null,null,"Q71","RAS","THE HILLINGDON HOSPITALS NHS FOUNDATION TRUST",null,null,"RD3","COUNTY DURHAM AND DARLINGTON NHS FOUNDATION TRUST"]
[null,null,null,null,null,null,null,null,null,null,null,null,null,null,null,null,null,"Q71","RPY","THE ROYAL MARSDEN NHS FOUNDATION TRUST",null,null,"RD8","COVENTRY AND WARWICKSHIRE PARTNERSHIP NHS TRUST"]
[null,null,null,null,null,null,null,null,null,null,null,null,null,null,null,null,null,"Q71","RKE","THE WHITTINGTON HOSPITAL NHS TRUST",null,null,"RDD","CROYDON HEALTH SERVICES NHS TRUST"]
[null,null,null,null,null,null,null,null,null,null,null,null,null,null,null,null,null,"Q71","RRV","UNIVERSITY COLLEGE LONDON HOSPITALS NHS FOUNDATION TRUST",null,null,"RDE","CUMBRIA PARTNERSHIP NHS FOUNDATION TRUST"]
[null,null,null,null,null,null,null,null,null,null,null,null,null,null,null,null,null,"Q71","RKL","WEST LONDON MENTAL HEALTH NHS TRUST",null,null,"RDR","DARTFORD AND GRAVESHAM NHS TRUST"]
[null,null,null,null,null,null,null,null,null,null,null,null,null,null,null,null,null,"Q72","RCF","AIREDALE NHS FOUNDATION TRUST",null,null,"RDU","DERBY TEACHING HOSPITALS NHS FOUNDATION TRUST"]
[null,null,null,null,null,null,null,null,null,null,null,null,null,null,null,null,null,"Q72","RFF","BARNSLEY HOSPITAL NHS FOUNDATION TRUST",null,null,"RDY","DERBYSHIRE COMMUNITY HEALTH SERVICES NHS FOUNDATION TRUST"]
[null,null,null,null,null,null,null,null,null,null,null,null,null,null,null,null,null,"Q72","TAD","BRADFORD DISTRICT CARE NHS FOUNDATION TRUST",null,null,"RDZ","DERBYSHIRE HEALTHCARE NHS FOUNDATION TRUST"]
[null,null,null,null,null,null,null,null,null,null,null,null,null,null,null,null,null,"Q72","RAE","BRADFORD TEACHING HOSPITALS NHS FOUNDATION TRUST",null,null,"RE9","DEVON PARTNERSHIP NHS TRUST"]
[null,null,null,null,null,null,null,null,null,null,null,null,null,null,null,null,null,"Q72","RWY","CALDERDALE AND HUDDERSFIELD NHS FOUNDATION TRUST",null,null,"REF","DONCASTER AND BASSETLAW TEACHING HOSPITALS NHS FOUNDATION TRUST"]
[null,null,null,null,null,null,null,null,null,null,null,null,null,null,null,null,null,"Q72","RP5","DONCASTER AND BASSETLAW TEACHING HOSPITALS NHS FOUNDATION TRUST",null,null,"REM","DORSET COUNTY HOSPITAL NHS FOUNDATION TRUST"]
[null,null,null,null,null,null,null,null,null,null,null,null,null,null,null,null,null,"Q72","RCD","HARROGATE AND DISTRICT NHS FOUNDATION TRUST",null,null,"REN","DORSET HEALTHCARE UNIVERSITY NHS FOUNDATION TRUST"]
[null,null,null,null,null,null,null,null,null,null,null,null,null,null,null,null,null,"Q72","RWA","HULL AND EAST YORKSHIRE HOSPITALS NHS TRUST",null,null,"REP","DUDLEY AND WALSALL MENTAL HEALTH PARTNERSHIP NHS TRUST"]
[null,null,null,null,null,null,null,null,null,null,null,null,null,null,null,null,null,"Q72","RV9","HUMBER NHS FOUNDATION TRUST",null,null,"RET","EAST AND NORTH HERTFORDSHIRE NHS TRUST"]
[null,null,null,null,null,null,null,null,null,null,null,null,null,null,null,null,null,"Q72","RGD","LEEDS AND YORK PARTNERSHIP NHS FOUNDATION TRUST",null,null,"RF4","EAST CHESHIRE NHS TRUST"]
[null,null,null,null,null,null,null,null,null,null,null,null,null,null,null,null,null,"Q72","RY6","LEEDS COMMUNITY HEALTHCARE NHS TRUST",null,null,"RFF","EAST KENT HOSPITALS UNIVERSITY NHS FOUNDATION TRUST"]
[null,null,null,null,null,null,null,null,null,null,null,null,null,null,null,null,null,"Q72","RR8","LEEDS TEACHING HOSPITALS NHS TRUST",null,null,"RFR","EAST LANCASHIRE HOSPITALS NHS TRUST"]
[null,null,null,null,null,null,null,null,null,null,null,null,null,null,null,null,null,"Q72","RXF","MID YORKSHIRE HOSPITALS NHS TRUST",null,null,"RFS","EAST LONDON NHS FOUNDATION TRUST"]
[null,null,null,null,null,null,null,null,null,null,null,null,null,null,null,null,null,"Q72","RJL","NORTHERN LINCOLNSHIRE AND GOOLE NHS FOUNDATION TRUST",null,null,"RGD","EAST MIDLANDS AMBULANCE SERVICE NHS TRUST"]
[null,null,null,null,null,null,null,null,null,null,null,null,null,null,null,null,null,"Q72","RXE","ROTHERHAM DONCASTER AND SOUTH HUMBER NHS FOUNDATION TRUST",null,null,"RGM","EAST OF ENGLAND AMBULANCE SERVICE NHS TRUST"]
[null,null,null,null,null,null,null,null,null,null,null,null,null,null,null,null,null,"Q72","RCU","SHEFFIELD CHILDREN'S NHS FOUNDATION TRUST",null,null,"RGN","EAST SUSSEX HEALTHCARE NHS TRUST"]
[null,null,null,null,null,null,null,null,null,null,null,null,null,null,null,null,null,"Q72","TAH","SHEFFIELD HEALTH & SOCIAL CARE NHS FOUNDATION TRUST",null,null,"RGP","EPSOM AND ST HELIER UNIVERSITY HOSPITALS NHS TRUST"]
[null,null,null,null,null,null,null,null,null,null,null,null,null,null,null,null,null,"Q72","RHQ","SHEFFIELD TEACHING HOSPITALS NHS FOUNDATION TRUST",null,null,"RGQ","ESSEX PARTNERSHIP UNIVERSITY NHS FOUNDATION TRUST"]
[null,null,null,null,null,null,null,null,null,null,null,null,null,null,null,null,null,"Q72","RXG","SOUTH WEST YORKSHIRE PARTNERSHIP NHS FOUNDATION TRUST",null,null,"RGR","FRIMLEY HEALTH NHS FOUNDATION TRUST"]
[null,null,null,null,null,null,null,null,null,null,null,null,null,null,null,null,null,"Q72","RFR","THE ROTHERHAM NHS FOUNDATION TRUST",null,null,"RGT","GATESHEAD HEALTH NHS FOUNDATION TRUST"]
[null,null,null,null,null,null,null,null,null,null,null,null,null,null,null,null,null,"Q72","RCB","YORK TEACHING HOSPITAL NHS FOUNDATION TRUST",null,null,"RH5","GEORGE ELIOT HOSPITAL NHS TRUST"]
[null,null,null,null,null,null,null,null,null,null,null,null,null,null,null,null,null,"Q72","RX8","YORKSHIRE AMBULANCE SERVICE NHS TRUST",null,null,"RH8","GLOUCESTERSHIRE CARE SERVICES NHS TRUST"]
[null,null,null,null,null,null,null,null,null,null,null,null,null,null,null,null,null,"Q74","RLN","CITY HOSPITALS SUNDERLAND NHS FOUNDATION TRUST",null,null,"RHA","GLOUCESTERSHIRE HOSPITALS NHS FOUNDATION TRUST"]
[null,null,null,null,null,null,null,null,null,null,null,null,null,null,null,null,null,"Q74","RXP","COUNTY DURHAM AND DARLINGTON NHS FOUNDATION TRUST",null,null,"RHM","GREAT ORMOND STREET HOSPITAL FOR CHILDREN NHS FOUNDATION TRUST"]
[null,null,null,null,null,null,null,null,null,null,null,null,null,null,null,null,null,"Q74","RNN","CUMBRIA PARTNERSHIP NHS FOUNDATION TRUST",null,null,"RHQ","GREAT WESTERN HOSPITALS NHS FOUNDATION TRUST"]
[null,null,null,null,null,null,null,null,null,null,null,null,null,null,null,null,null,"Q74","RR7","GATESHEAD HEALTH NHS FOUNDATION TRUST",null,null,"RHU","GREATER MANCHESTER MENTAL HEALTH NHS FOUNDATION TRUST"]
[null,null,null,null,null,null,null,null,null,null,null,null,null,null,null,null,null,"Q74","RNL","NORTH CUMBRIA UNIVERSITY HOSPITALS NHS TRUST",null,null,"RHW","GUY'S AND ST THOMAS' NHS FOUNDATION TRUST"]
[null,null,null,null,null,null,null,null,null,null,null,null,null,null,null,null,null,"Q74","RX6","NORTH EAST AMBULANCE SERVICE NHS FOUNDATION TRUST",null,null,"RJ1","HAMPSHIRE HOSPITALS NHS FOUNDATION TRUST"]
[null,null,null,null,null,null,null,null,null,null,null,null,null,null,null,null,null,"Q74","RVW","NORTH TEES AND HARTLEPOOL NHS FOUNDATION TRUST",null,null,"RJ2","HARROGATE AND DISTRICT NHS FOUNDATION TRUST"]
[null,null,null,null,null,null,null,null,null,null,null,null,null,null,null,null,null,"Q74","RX4","NORTHUMBERLAND, TYNE AND WEAR NHS FOUNDATION TRUST",null,null,"RJ6","HEART OF ENGLAND NHS FOUNDATION TRUST"]
[null,null,null,null,null,null,null,null,null,null,null,null,null,null,null,null,null,"Q74","RTF","NORTHUMBRIA HEALTHCARE NHS FOUNDATION TRUST",null,null,"RJ7","HERTFORDSHIRE COMMUNITY NHS TRUST"]
[null,null,null,null,null,null,null,null,null,null,null,null,null,null,null,null,null,"Q74","RTR","SOUTH TEES HOSPITALS NHS FOUNDATION TRUST",null,null,"RJ8","HERTFORDSHIRE PARTNERSHIP UNIVERSITY NHS FOUNDATION TRUST"]
[null,null,null,null,null,null,null,null,null,null,null,null,null,null,null,null,null,"Q74","RE9","SOUTH TYNESIDE NHS FOUNDATION TRUST",null,null,"RJC","HOMERTON UNIVERSITY HOSPITAL NHS FOUNDATION TRUST"]
[null,null,null,null,null,null,null,null,null,null,null,null,null,null,null,null,null,"Q74","RX3","TEES, ESK AND WEAR VALLEYS NHS FOUNDATION TRUST",null,null,"RJE","HOUNSLOW AND RICHMOND COMMUNITY HEALTHCARE NHS TRUST"]
[null,null,null,null,null,null,null,null,null,null,null,null,null,null,null,null,null,"Q74","RTD","THE NEWCASTLE UPON TYNE HOSPITALS NHS FOUNDATION TRUST",null,null,"RJF","HULL AND EAST YORKSHIRE HOSPITALS NHS TRUST"]
[null,null,null,null,null,null,null,null,null,null,null,null,null,null,null,null,null,"Q74","RTX","UNIVERSITY HOSPITALS OF MORECAMBE BAY NHS FOUNDATION TRUST",null,null,"RJL","HUMBER NHS FOUNDATION TRUST"]
[null,null,null,null,null,null,null,null,null,null,null,null,null,null,null,null,null,"Q75","REM","AINTREE UNIVERSITY HOSPITAL NHS FOUNDATION TRUST",null,null,"RJN","IMPERIAL COLLEGE HEALTHCARE NHS TRUST"]
[null,null,null,null,null,null,null,null,null,null,null,null,null,null,null,null,null,"Q75","RBS","ALDER HEY CHILDREN'S NHS FOUNDATION TRUST",null,null,"RJR","IPSWICH HOSPITAL NHS TRUST"]
[null,null,null,null,null,null,null,null,null,null,null,null,null,null,null,null,null,"Q75","RXA","CHESHIRE AND WIRRAL PARTNERSHIP NHS FOUNDATION TRUST",null,null,"RJZ","ISLE OF WIGHT NHS TRUST"]
[null,null,null,null,null,null,null,null,null,null,null,null,null,null,null,null,null,"Q75","RJR","COUNTESS OF CHESTER HOSPITAL NHS FOUNDATION TRUST",null,null,"RK5","JAMES PAGET UNIVERSITY HOSPITALS NHS FOUNDATION TRUST"]
[null,null,null,null,null,null,null,null,null,null,null,null,null,null,null,null,null,"Q75","RJN","EAST CHESHIRE NHS TRUST",null,null,"RK9","KENT AND MEDWAY NHS AND SOCIAL CARE PARTNERSHIP TRUST"]
[null,null,null,null,null,null,null,null,null,null,null,null,null,null,null,null,null,"Q75","RY1","LIVERPOOL COMMUNITY HEALTH NHS TRUST",null,null,"RKB","KENT COMMUNITY HEALTH NHS FOUNDATION TRUST"]
[null,null,null,null,null,null,null,null,null,null,null,null,null,null,null,null,null,"Q75","RBQ","LIVERPOOL HEART AND CHEST HOSPITAL NHS FOUNDATION TRUST",null,null,"RKE","KETTERING GENERAL HOSPITAL NHS FOUNDATION TRUST"]
[null,null,null,null,null,null,null,null,null,null,null,null,null,null,null,null,null,"Q75","REP","LIVERPOOL WOMEN'S NHS FOUNDATION TRUST",null,null,"RKL","KING'S COLLEGE HOSPITAL NHS FOUNDATION TRUST"]
[null,null,null,null,null,null,null,null,null,null,null,null,null,null,null,null,null,"Q75","RW4","MERSEY CARE NHS FOUNDATION TRUST",null,null,"RL1","KINGSTON HOSPITAL NHS FOUNDATION TRUST"]
[null,null,null,null,null,null,null,null,null,null,null,null,null,null,null,null,null,"Q75","RBT","MID CHESHIRE HOSPITALS NHS FOUNDATION TRUST",null,null,"RL4","LANCASHIRE CARE NHS FOUNDATION TRUST"]
[null,null,null,null,null,null,null,null,null,null,null,null,null,null,null,null,null,"Q75","RTV","NORTH WEST BOROUGHS HEALTHCARE NHS FOUNDATION TRUST",null,null,"RLN","LANCASHIRE TEACHING HOSPITALS NHS FOUNDATION TRUST"]
[null,null,null,null,null,null,null,null,null,null,null,null,null,null,null,null,null,"Q75","RQ6","ROYAL LIVERPOOL AND BROADGREEN UNIVERSITY HOSPITALS NHS TRUST",null,null,"RLT","LEEDS AND YORK PARTNERSHIP NHS FOUNDATION TRUST"]
[null,null,null,null,null,null,null,null,null,null,null,null,null,null,null,null,null,"Q75","RVY","SOUTHPORT AND ORMSKIRK HOSPITAL NHS TRUST",null,null,"RLY","LEEDS COMMUNITY HEALTHCARE NHS TRUST"]
[null,null,null,null,null,null,null,null,null,null,null,null,null,null,null,null,null,"Q75","RBN","ST HELENS AND KNOWSLEY HOSPITAL SERVICES NHS TRUST",null,null,"RM1","LEEDS TEACHING HOSPITALS NHS TRUST"]
[null,null,null,null,null,null,null,null,null,null,null,null,null,null,null,null,null,"Q75","REN","THE CLATTERBRIDGE CANCER CENTRE NHS FOUNDATION TRUST",null,null,"RM2","LEICESTERSHIRE PARTNERSHIP NHS TRUST"]
[null,null,null,null,null,null,null,null,null,null,null,null,null,null,null,null,null,"Q75","RET","THE WALTON CENTRE NHS FOUNDATION TRUST",null,null,"RM3","LEWISHAM AND GREENWICH NHS TRUST"]
[null,null,null,null,null,null,null,null,null,null,null,null,null,null,null,null,null,"Q75","RWW","WARRINGTON AND HALTON HOSPITALS NHS FOUNDATION TRUST",null,null,"RMC","LINCOLNSHIRE COMMUNITY HEALTH SERVICES NHS TRUST"]
[null,null,null,null,null,null,null,null,null,null,null,null,null,null,null,null,null,"Q75","RY7","WIRRAL COMMUNITY NHS FOUNDATION TRUST",null,null,"RMP","LINCOLNSHIRE PARTNERSHIP NHS FOUNDATION TRUST"]
[null,null,null,null,null,null,null,null,null,null,null,null,null,null,null,null,null,"Q75","RBL","WIRRAL UNIVERSITY TEACHING HOSPITAL NHS FOUNDATION TRUST",null,null,"RMY","LIVERPOOL COMMUNITY HEALTH NHS TRUST"]
[null,null,null,null,null,null,null,null,null,null,null,null,null,null,null,null,null,"Q76","RJF","BURTON HOSPITALS NHS FOUNDATION TRUST",null,null,"RN3","LIVERPOOL HEART AND CHEST HOSPITAL NHS FOUNDATION TRUST"]
[null,null,null,null,null,null,null,null,null,null,null,null,null,null,null,null,null,"Q76","RFS","CHESTERFIELD ROYAL HOSPITAL NHS FOUNDATION TRUST",null,null,"RN5","LIVERPOOL WOMEN'S NHS FOUNDATION TRUST"]
[null,null,null,null,null,null,null,null,null,null,null,null,null,null,null,null,null,"Q76","RTG","DERBY TEACHING HOSPITALS NHS FOUNDATION TRUST",null,null,"RN7","LONDON AMBULANCE SERVICE NHS TRUST"]
[null,null,null,null,null,null,null,null,null,null,null,null,null,null,null,null,null,"Q76","RY8","DERBYSHIRE COMMUNITY HEALTH SERVICES NHS FOUNDATION TRUST",null,null,"RNA","LONDON NORTH WEST HEALTHCARE NHS TRUST"]
[null,null,null,null,null,null,null,null,null,null,null,null,null,null,null,null,null,"Q76","RXM","DERBYSHIRE HEALTHCARE NHS FOUNDATION TRUST",null,null,"RNK","LUTON AND DUNSTABLE UNIVERSITY HOSPITAL NHS FOUNDATION TRUST"]
[null,null,null,null,null,null,null,null,null,null,null,null,null,null,null,null,null,"Q76","RX9","EAST MIDLANDS AMBULANCE SERVICE NHS TRUST",null,null,"RNL","MAIDSTONE AND TUNBRIDGE WELLS NHS TRUST"]
[null,null,null,null,null,null,null,null,null,null,null,null,null,null,null,null,null,"Q76","RLY","NORTH STAFFORDSHIRE COMBINED HEALTHCARE NHS TRUST",null,null,"RNN","MEDWAY NHS FOUNDATION TRUST"]
[null,null,null,null,null,null,null,null,null,null,null,null,null,null,null,null,null,"Q76","RX1","NOTTINGHAM UNIVERSITY HOSPITALS NHS TRUST",null,null,"RNQ","MERSEY CARE NHS FOUNDATION TRUST"]
[null,null,null,null,null,null,null,null,null,null,null,null,null,null,null,null,null,"Q76","RHA","NOTTINGHAMSHIRE HEALTHCARE NHS FOUNDATION TRUST",null,null,"RNS","MID CHESHIRE HOSPITALS NHS FOUNDATION TRUST"]
[null,null,null,null,null,null,null,null,null,null,null,null,null,null,null,null,null,"Q76","RK5","SHERWOOD FOREST HOSPITALS NHS FOUNDATION TRUST",null,null,"RNU","MID YORKSHIRE HOSPITALS NHS TRUST"]
[null,null,null,null,null,null,null,null,null,null,null,null,null,null,null,null,null,"Q76","RXW","SHREWSBURY AND TELFORD HOSPITAL NHS TRUST",null,null,"RNZ","MILTON KEYNES UNIVERSITY HOSPITAL NHS FOUNDATION TRUST"]
[null,null,null,null,null,null,null,null,null,null,null,null,null,null,null,null,null,"Q76","R1D","SHROPSHIRE COMMUNITY HEALTH NHS TRUST",null,null,"RP1","MOORFIELDS EYE HOSPITAL NHS FOUNDATION TRUST"]
[null,null,null,null,null,null,null,null,null,null,null,null,null,null,null,null,null,"Q76","RRE","SOUTH STAFFORDSHIRE AND SHROPSHIRE HEALTHCARE NHS FOUNDATION TRUST",null,null,"RP4","NORFOLK AND NORWICH UNIVERSITY HOSPITALS NHS FOUNDATION TRUST"]
[null,null,null,null,null,null,null,null,null,null,null,null,null,null,null,null,null,"Q76","R1E","STAFFORDSHIRE AND STOKE ON TRENT PARTNERSHIP NHS TRUST",null,null,"RP5","NORFOLK AND SUFFOLK NHS FOUNDATION TRUST"]
[null,null,null,null,null,null,null,null,null,null,null,null,null,null,null,null,null,"Q76","RL1","THE ROBERT JONES AND AGNES HUNT ORTHOPAEDIC HOSPITAL NHS FOUNDATION TRUST",null,null,"RP6","NORFOLK COMMUNITY HEALTH AND CARE NHS TRUST"]
[null,null,null,null,null,null,null,null,null,null,null,null,null,null,null,null,null,"Q76","RJE","UNIVERSITY HOSPITALS OF NORTH MIDLANDS NHS TRUST",null,null,"RP7","NORTH BRISTOL NHS TRUST"]
[null,null,null,null,null,null,null,null,null,null,null,null,null,null,null,null,null,"Q77","RXT","BIRMINGHAM AND SOLIHULL MENTAL HEALTH NHS FOUNDATION TRUST",null,null,"RPA","NORTH CUMBRIA UNIVERSITY HOSPITALS NHS TRUST"]
[null,null,null,null,null,null,null,null,null,null,null,null,null,null,null,null,null,"Q77","RYW","BIRMINGHAM COMMUNITY HEALTHCARE NHS FOUNDATION TRUST",null,null,"RPC","NORTH EAST AMBULANCE SERVICE NHS FOUNDATION TRUST"]
[null,null,null,null,null,null,null,null,null,null,null,null,null,null,null,null,null,"Q77","RQ3","BIRMINGHAM WOMEN'S AND CHILDREN'S NHS FOUNDATION TRUST",null,null,"RPG","NORTH EAST LONDON NHS FOUNDATION TRUST"]
[null,null,null,null,null,null,null,null,null,null,null,null,null,null,null,null,null,"Q77","TAJ","BLACK COUNTRY PARTNERSHIP NHS FOUNDATION TRUST",null,null,"RPY","NORTH MIDDLESEX UNIVERSITY HOSPITAL NHS TRUST"]
[null,null,null,null,null,null,null,null,null,null,null,null,null,null,null,null,null,"Q77","RYG","COVENTRY AND WARWICKSHIRE PARTNERSHIP NHS TRUST",null,null,"RQ3","NORTH STAFFORDSHIRE COMBINED HEALTHCARE NHS TRUST"]
[null,null,null,null,null,null,null,null,null,null,null,null,null,null,null,null,null,"Q77","RYK","DUDLEY AND WALSALL MENTAL HEALTH PARTNERSHIP NHS TRUST",null,null,"RQ6","NORTH TEES AND HARTLEPOOL NHS FOUNDATION TRUST"]
[null,null,null,null,null,null,null,null,null,null,null,null,null,null,null,null,null,"Q77","RLT","GEORGE ELIOT HOSPITAL NHS TRUST",null,null,"RQM","NORTH WEST AMBULANCE SERVICE NHS TRUST"]
[null,null,null,null,null,null,null,null,null,null,null,null,null,null,null,null,null,"Q77","RR1","HEART OF ENGLAND NHS FOUNDATION TRUST",null,null,"RQW","NORTH WEST ANGLIA NHS FOUNDATION TRUST"]
[null,null,null,null,null,null,null,null,null,null,null,null,null,null,null,null,null,"Q77","RXK","SANDWELL AND WEST BIRMINGHAM HOSPITALS NHS TRUST",null,null,"RQX","NORTH WEST BOROUGHS HEALTHCARE NHS FOUNDATION TRUST"]
[null,null,null,null,null,null,null,null,null,null,null,null,null,null,null,null,null,"Q77","RJC","SOUTH WARWICKSHIRE NHS FOUNDATION TRUST",null,null,"RQY","NORTHAMPTON GENERAL HOSPITAL NHS TRUST"]
[null,null,null,null,null,null,null,null,null,null,null,null,null,null,null,null,null,"Q77","RNA","THE DUDLEY GROUP NHS FOUNDATION TRUST",null,null,"RR1","NORTHAMPTONSHIRE HEALTHCARE NHS FOUNDATION TRUST"]
[null,null,null,null,null,null,null,null,null,null,null,null,null,null,null,null,null,"Q77","RRJ","THE ROYAL ORTHOPAEDIC HOSPITAL NHS FOUNDATION TRUST",null,null,"RR7","NORTHERN DEVON HEALTHCARE NHS TRUST"]
[null,null,null,null,null,null,null,null,null,null,null,null,null,null,null,null,null,"Q77","RL4","THE ROYAL WOLVERHAMPTON NHS TRUST",null,null,"RR8","NORTHERN LINCOLNSHIRE AND GOOLE NHS FOUNDATION TRUST"]
[null,null,null,null,null,null,null,null,null,null,null,null,null,null,null,null,null,"Q77","RRK","UNIVERSITY HOSPITALS BIRMINGHAM NHS FOUNDATION TRUST",null,null,"RRE","NORTHUMBERLAND, TYNE AND WEAR NHS FOUNDATION TRUST"]
[null,null,null,null,null,null,null,null,null,null,null,null,null,null,null,null,null,"Q77","RKB","UNIVERSITY HOSPITALS COVENTRY AND WARWICKSHIRE NHS TRUST",null,null,"RRF","NORTHUMBRIA HEALTHCARE NHS FOUNDATION TRUST"]
[null,null,null,null,null,null,null,null,null,null,null,null,null,null,null,null,null,"Q77","RBK","WALSALL HEALTHCARE NHS TRUST",null,null,"RRJ","NOTTINGHAM UNIVERSITY HOSPITALS NHS TRUST"]
[null,null,null,null,null,null,null,null,null,null,null,null,null,null,null,null,null,"Q77","RYA","WEST MIDLANDS AMBULANCE SERVICE NHS FOUNDATION TRUST",null,null,"RRK","NOTTINGHAMSHIRE HEALTHCARE NHS FOUNDATION TRUST"]
[null,null,null,null,null,null,null,null,null,null,null,null,null,null,null,null,null,"Q77","RWP","WORCESTERSHIRE ACUTE HOSPITALS NHS TRUST",null,null,"RRU","OXFORD HEALTH NHS FOUNDATION TRUST"]
[null,null,null,null,null,null,null,null,null,null,null,null,null,null,null,null,null,"Q77","R1A","WORCESTERSHIRE HEALTH AND CARE NHS TRUST",null,null,"RRV","OXFORD UNIVERSITY HOSPITALS NHS FOUNDATION TRUST"]
[null,null,null,null,null,null,null,null,null,null,null,null,null,null,null,null,null,"Q78","RC1","BEDFORD HOSPITAL NHS TRUST",null,null,"RT1","OXLEAS NHS FOUNDATION TRUST"]
[null,null,null,null,null,null,null,null,null,null,null,null,null,null,null,null,null,"Q78","RWH","EAST AND NORTH HERTFORDSHIRE NHS TRUST",null,null,"RT2","PAPWORTH HOSPITAL NHS FOUNDATION TRUST"]
[null,null,null,null,null,null,null,null,null,null,null,null,null,null,null,null,null,"Q78","RY4","HERTFORDSHIRE COMMUNITY NHS TRUST",null,null,"RT3","PENNINE ACUTE HOSPITALS NHS TRUST"]
[null,null,null,null,null,null,null,null,null,null,null,null,null,null,null,null,null,"Q78","RWR","HERTFORDSHIRE PARTNERSHIP UNIVERSITY NHS FOUNDATION TRUST",null,null,"RT5","PENNINE CARE NHS FOUNDATION TRUST"]
[null,null,null,null,null,null,null,null,null,null,null,null,null,null,null,null,null,"Q78","RNQ","KETTERING GENERAL HOSPITAL NHS FOUNDATION TRUST",null,null,"RTD","PLYMOUTH HOSPITALS NHS TRUST"]
[null,null,null,null,null,null,null,null,null,null,null,null,null,null,null,null,null,"Q78","RT5","LEICESTERSHIRE PARTNERSHIP NHS TRUST",null,null,"RTE","POOLE HOSPITAL NHS FOUNDATION TRUST"]
[null,null,null,null,null,null,null,null,null,null,null,null,null,null,null,null,null,"Q78","RY5","LINCOLNSHIRE COMMUNITY HEALTH SERVICES NHS TRUST",null,null,"RTF","PORTSMOUTH HOSPITALS NHS TRUST"]
[null,null,null,null,null,null,null,null,null,null,null,null,null,null,null,null,null,"Q78","RP7","LINCOLNSHIRE PARTNERSHIP NHS FOUNDATION TRUST",null,null,"RTG","QUEEN VICTORIA HOSPITAL NHS FOUNDATION TRUST"]
[null,null,null,null,null,null,null,null,null,null,null,null,null,null,null,null,null,"Q78","RC9","LUTON AND DUNSTABLE UNIVERSITY HOSPITAL NHS FOUNDATION TRUST",null,null,"RTH","ROTHERHAM DONCASTER AND SOUTH HUMBER NHS FOUNDATION TRUST"]
[null,null,null,null,null,null,null,null,null,null,null,null,null,null,null,null,null,"Q78","RD8","MILTON KEYNES UNIVERSITY HOSPITAL NHS FOUNDATION TRUST",null,null,"RTK","ROYAL BERKSHIRE NHS FOUNDATION TRUST"]
[null,null,null,null,null,null,null,null,null,null,null,null,null,null,null,null,null,"Q78","RNS","NORTHAMPTON GENERAL HOSPITAL NHS TRUST",null,null,"RTP","ROYAL BROMPTON & HAREFIELD NHS FOUNDATION TRUST"]
[null,null,null,null,null,null,null,null,null,null,null,null,null,null,null,null,null,"Q78","RP1","NORTHAMPTONSHIRE HEALTHCARE NHS FOUNDATION TRUST",null,null,"RTQ","ROYAL CORNWALL HOSPITALS NHS TRUST"]
[null,null,null,null,null,null,null,null,null,null,null,null,null,null,null,null,null,"Q78","RWD","UNITED LINCOLNSHIRE HOSPITALS NHS TRUST",null,null,"RTR","ROYAL DEVON AND EXETER NHS FOUNDATION TRUST"]
[null,null,null,null,null,null,null,null,null,null,null,null,null,null,null,null,null,"Q78","RWE","UNIVERSITY HOSPITALS OF LEICESTER NHS TRUST",null,null,"RTV","ROYAL LIVERPOOL AND BROADGREEN UNIVERSITY HOSPITALS NHS TRUST"]
[null,null,null,null,null,null,null,null,null,null,null,null,null,null,null,null,null,"Q78","RWG","WEST HERTFORDSHIRE HOSPITALS NHS TRUST",null,null,"RTX","ROYAL NATIONAL ORTHOPAEDIC HOSPITAL NHS TRUST"]
[null,null,null,null,null,null,null,null,null,null,null,null,null,null,null,null,null,"Q79","RDD","BASILDON AND THURROCK UNIVERSITY HOSPITALS NHS FOUNDATION TRUST",null,null,"RV3","ROYAL SURREY COUNTY HOSPITAL NHS FOUNDATION TRUST"]
[null,null,null,null,null,null,null,null,null,null,null,null,null,null,null,null,null,"Q79","RGT","CAMBRIDGE UNIVERSITY HOSPITALS NHS FOUNDATION TRUST",null,null,"RV5","ROYAL UNITED HOSPITALS BATH NHS FOUNDATION TRUST"]
[null,null,null,null,null,null,null,null,null,null,null,null,null,null,null,null,null,"Q79","RT1","CAMBRIDGESHIRE AND PETERBOROUGH NHS FOUNDATION TRUST",null,null,"RV9","SALFORD ROYAL NHS FOUNDATION TRUST"]
[null,null,null,null,null,null,null,null,null,null,null,null,null,null,null,null,null,"Q79","RYV","CAMBRIDGESHIRE COMMUNITY SERVICES NHS TRUST",null,null,"RVJ","SALISBURY NHS FOUNDATION TRUST"]
[null,null,null,null,null,null,null,null,null,null,null,null,null,null,null,null,null,"Q79","RDE","COLCHESTER HOSPITAL UNIVERSITY NHS FOUNDATION TRUST",null,null,"RVN","SANDWELL AND WEST BIRMINGHAM HOSPITALS NHS TRUST"]
[null,null,null,null,null,null,null,null,null,null,null,null,null,null,null,null,null,"Q79","RYC","EAST OF ENGLAND AMBULANCE SERVICE NHS TRUST",null,null,"RVR","SHEFFIELD CHILDREN'S NHS FOUNDATION TRUST"]
[null,null,null,null,null,null,null,null,null,null,null,null,null,null,null,null,null,"Q79","R1L","ESSEX PARTNERSHIP UNIVERSITY NHS FOUNDATION TRUST",null,null,"RVV","SHEFFIELD HEALTH & SOCIAL CARE NHS FOUNDATION TRUST"]
[null,null,null,null,null,null,null,null,null,null,null,null,null,null,null,null,null,"Q79","RGQ","IPSWICH HOSPITAL NHS TRUST",null,null,"RVW","SHEFFIELD TEACHING HOSPITALS NHS FOUNDATION TRUST"]
[null,null,null,null,null,null,null,null,null,null,null,null,null,null,null,null,null,"Q79","RGP","JAMES PAGET UNIVERSITY HOSPITALS NHS FOUNDATION TRUST",null,null,"RVY","SHERWOOD FOREST HOSPITALS NHS FOUNDATION TRUST"]
[null,null,null,null,null,null,null,null,null,null,null,null,null,null,null,null,null,"Q79","RM1","NORFOLK AND NORWICH UNIVERSITY HOSPITALS NHS FOUNDATION TRUST",null,null,"RW1","SHREWSBURY AND TELFORD HOSPITAL NHS TRUST"]
[null,null,null,null,null,null,null,null,null,null,null,null,null,null,null,null,null,"Q79","RMY","NORFOLK AND SUFFOLK NHS FOUNDATION TRUST",null,null,"RW3","SHROPSHIRE COMMUNITY HEALTH NHS TRUST"]
[null,null,null,null,null,null,null,null,null,null,null,null,null,null,null,null,null,"Q79","RY3","NORFOLK COMMUNITY HEALTH AND CARE NHS TRUST",null,null,"RW4","SOLENT NHS TRUST"]
[null,null,null,null,null,null,null,null,null,null,null,null,null,null,null,null,null,"Q79","RGN","NORTH WEST ANGLIA NHS FOUNDATION TRUST",null,null,"RW5","SOMERSET PARTNERSHIP NHS FOUNDATION TRUST"]
[null,null,null,null,null,null,null,null,null,null,null,null,null,null,null,null,null,"Q79","RGM","PAPWORTH HOSPITAL NHS FOUNDATION TRUST",null,null,"RW6","SOUTH CENTRAL AMBULANCE SERVICE NHS FOUNDATION TRUST"]
[null,null,null,null,null,null,null,null,null,null,null,null,null,null,null,null,null,"Q79","RAJ","SOUTHEND UNIVERSITY HOSPITAL NHS FOUNDATION TRUST",null,null,"RWA","SOUTH EAST COAST AMBULANCE SERVICE NHS FOUNDATION TRUST"]
[null,null,null,null,null,null,null,null,null,null,null,null,null,null,null,null,null,"Q79","RQW","THE PRINCESS ALEXANDRA HOSPITAL NHS TRUST",null,null,"RWD","SOUTH LONDON AND MAUDSLEY NHS FOUNDATION TRUST"]
[null,null,null,null,null,null,null,null,null,null,null,null,null,null,null,null,null,"Q79","RCX","THE QUEEN ELIZABETH HOSPITAL, KING'S LYNN, NHS FOUNDATION TRUST",null,null,"RWE","SOUTH STAFFORDSHIRE AND SHROPSHIRE HEALTHCARE NHS FOUNDATION TRUST"]
[null,null,null,null,null,null,null,null,null,null,null,null,null,null,null,null,null,"Q79","RGR","WEST SUFFOLK NHS FOUNDATION TRUST",null,null,"RWF","SOUTH TEES HOSPITALS NHS FOUNDATION TRUST"]
[null,null,null,null,null,null,null,null,null,null,null,null,null,null,null,null,null,"Q80","RJ8","CORNWALL PARTNERSHIP NHS FOUNDATION TRUST",null,null,"RWG","SOUTH TYNESIDE NHS FOUNDATION TRUST"]
[null,null,null,null,null,null,null,null,null,null,null,null,null,null,null,null,null,"Q80","RWV","DEVON PARTNERSHIP NHS TRUST",null,null,"RWH","SOUTH WARWICKSHIRE NHS FOUNDATION TRUST"]
[null,null,null,null,null,null,null,null,null,null,null,null,null,null,null,null,null,"Q80","RVJ","NORTH BRISTOL NHS TRUST",null,null,"RWJ","SOUTH WEST LONDON AND ST GEORGE'S MENTAL HEALTH NHS TRUST"]
[null,null,null,null,null,null,null,null,null,null,null,null,null,null,null,null,null,"Q80","RBZ","NORTHERN DEVON HEALTHCARE NHS TRUST",null,null,"RWK","SOUTH WEST YORKSHIRE PARTNERSHIP NHS FOUNDATION TRUST"]
[null,null,null,null,null,null,null,null,null,null,null,null,null,null,null,null,null,"Q80","RK9","PLYMOUTH HOSPITALS NHS TRUST",null,null,"RWP","SOUTH WESTERN AMBULANCE SERVICE NHS FOUNDATION TRUST"]
[null,null,null,null,null,null,null,null,null,null,null,null,null,null,null,null,null,"Q80","REF","ROYAL CORNWALL HOSPITALS NHS TRUST",null,null,"RWR","SOUTHEND UNIVERSITY HOSPITAL NHS FOUNDATION TRUST"]
[null,null,null,null,null,null,null,null,null,null,null,null,null,null,null,null,null,"Q80","RH8","ROYAL DEVON AND EXETER NHS FOUNDATION TRUST",null,null,"RWV","SOUTHERN HEALTH NHS FOUNDATION TRUST"]
[null,null,null,null,null,null,null,null,null,null,null,null,null,null,null,null,null,"Q80","RH5","SOMERSET PARTNERSHIP NHS FOUNDATION TRUST",null,null,"RWW","SOUTHPORT AND ORMSKIRK HOSPITAL NHS TRUST"]
[null,null,null,null,null,null,null,null,null,null,null,null,null,null,null,null,null,"Q80","RYF","SOUTH WESTERN AMBULANCE SERVICE NHS FOUNDATION TRUST",null,null,"RWX","ST GEORGE'S UNIVERSITY HOSPITALS NHS FOUNDATION TRUST"]
[null,null,null,null,null,null,null,null,null,null,null,null,null,null,null,null,null,"Q80","RBA","TAUNTON AND SOMERSET NHS FOUNDATION TRUST",null,null,"RWY","ST HELENS AND KNOWSLEY HOSPITAL SERVICES NHS TRUST"]
[null,null,null,null,null,null,null,null,null,null,null,null,null,null,null,null,null,"Q80","RA9","TORBAY AND SOUTH DEVON NHS FOUNDATION TRUST",null,null,"RX1","STAFFORDSHIRE AND STOKE ON TRENT PARTNERSHIP NHS TRUST"]
[null,null,null,null,null,null,null,null,null,null,null,null,null,null,null,null,null,"Q80","RA7","UNIVERSITY HOSPITALS BRISTOL NHS FOUNDATION TRUST",null,null,"RX2","STOCKPORT NHS FOUNDATION TRUST"]
[null,null,null,null,null,null,null,null,null,null,null,null,null,null,null,null,null,"Q80","RA3","WESTON AREA HEALTH NHS TRUST",null,null,"RX3","SURREY AND BORDERS PARTNERSHIP NHS FOUNDATION TRUST"]
[null,null,null,null,null,null,null,null,null,null,null,null,null,null,null,null,null,"Q80","RA4","YEOVIL DISTRICT HOSPITAL NHS FOUNDATION TRUST",null,null,"RX4","SURREY AND SUSSEX HEALTHCARE NHS TRUST"]
[null,null,null,null,null,null,null,null,null,null,null,null,null,null,null,null,null,"Q81","RTK","ASHFORD AND ST PETER'S HOSPITALS NHS FOUNDATION TRUST",null,null,"RX6","SUSSEX COMMUNITY NHS FOUNDATION TRUST"]
[null,null,null,null,null,null,null,null,null,null,null,null,null,null,null,null,null,"Q81","RXH","BRIGHTON AND SUSSEX UNIVERSITY HOSPITALS NHS TRUST",null,null,"RX7","SUSSEX PARTNERSHIP NHS FOUNDATION TRUST"]
[null,null,null,null,null,null,null,null,null,null,null,null,null,null,null,null,null,"Q81","RN7","DARTFORD AND GRAVESHAM NHS TRUST",null,null,"RX8","TAMESIDE AND GLOSSOP INTEGRATED CARE NHS FOUNDATION TRUST"]
[null,null,null,null,null,null,null,null,null,null,null,null,null,null,null,null,null,"Q81","RVV","EAST KENT HOSPITALS UNIVERSITY NHS FOUNDATION TRUST",null,null,"RX9","TAUNTON AND SOMERSET NHS FOUNDATION TRUST"]
[null,null,null,null,null,null,null,null,null,null,null,null,null,null,null,null,null,"Q81","RXC","EAST SUSSEX HEALTHCARE NHS TRUST",null,null,"RXA","TAVISTOCK AND PORTMAN NHS FOUNDATION TRUST"]
[null,null,null,null,null,null,null,null,null,null,null,null,null,null,null,null,null,"Q81","RDU","FRIMLEY HEALTH NHS FOUNDATION TRUST",null,null,"RXC","TEES, ESK AND WEAR VALLEYS NHS FOUNDATION TRUST"]
[null,null,null,null,null,null,null,null,null,null,null,null,null,null,null,null,null,"Q81","RXY","KENT AND MEDWAY NHS AND SOCIAL CARE PARTNERSHIP TRUST",null,null,"RXE","THE CHRISTIE NHS FOUNDATION TRUST"]
[null,null,null,null,null,null,null,null,null,null,null,null,null,null,null,null,null,"Q81","RYY","KENT COMMUNITY HEALTH NHS FOUNDATION TRUST",null,null,"RXF","THE CLATTERBRIDGE CANCER CENTRE NHS FOUNDATION TRUST"]
[null,null,null,null,null,null,null,null,null,null,null,null,null,null,null,null,null,"Q81","RWF","MAIDSTONE AND TUNBRIDGE WELLS NHS TRUST",null,null,"RXG","THE DUDLEY GROUP NHS FOUNDATION TRUST"]
[null,null,null,null,null,null,null,null,null,null,null,null,null,null,null,null,null,"Q81","RPA","MEDWAY NHS FOUNDATION TRUST",null,null,"RXH","THE HILLINGDON HOSPITALS NHS FOUNDATION TRUST"]
[null,null,null,null,null,null,null,null,null,null,null,null,null,null,null,null,null,"Q81","RPC","QUEEN VICTORIA HOSPITAL NHS FOUNDATION TRUST",null,null,"RXK","THE NEWCASTLE UPON TYNE HOSPITALS NHS FOUNDATION TRUST"]
[null,null,null,null,null,null,null,null,null,null,null,null,null,null,null,null,null,"Q81","RA2","ROYAL SURREY COUNTY HOSPITAL NHS FOUNDATION TRUST",null,null,"RXL","THE PRINCESS ALEXANDRA HOSPITAL NHS TRUST"]
[null,null,null,null,null,null,null,null,null,null,null,null,null,null,null,null,null,"Q81","RYD","SOUTH EAST COAST AMBULANCE SERVICE NHS FOUNDATION TRUST",null,null,"RXM","THE QUEEN ELIZABETH HOSPITAL, KING'S LYNN, NHS FOUNDATION TRUST"]
[null,null,null,null,null,null,null,null,null,null,null,null,null,null,null,null,null,"Q81","RXX","SURREY AND BORDERS PARTNERSHIP NHS FOUNDATION TRUST",null,null,"RXN","THE ROBERT JONES AND AGNES HUNT ORTHOPAEDIC HOSPITAL NHS FOUNDATION TRUST"]
[null,null,null,null,null,null,null,null,null,null,null,null,null,null,null,null,null,"Q81","RTP","SURREY AND SUSSEX HEALTHCARE NHS TRUST",null,null,"RXP","THE ROTHERHAM NHS FOUNDATION TRUST"]
[null,null,null,null,null,null,null,null,null,null,null,null,null,null,null,null,null,"Q81","RDR","SUSSEX COMMUNITY NHS FOUNDATION TRUST",null,null,"RXQ","THE ROYAL BOURNEMOUTH AND CHRISTCHURCH HOSPITALS NHS FOUNDATION TRUST"]
[null,null,null,null,null,null,null,null,null,null,null,null,null,null,null,null,null,"Q81","RX2","SUSSEX PARTNERSHIP NHS FOUNDATION TRUST",null,null,"RXR","THE ROYAL MARSDEN NHS FOUNDATION TRUST"]
[null,null,null,null,null,null,null,null,null,null,null,null,null,null,null,null,null,"Q81","RYR","WESTERN SUSSEX HOSPITALS NHS FOUNDATION TRUST",null,null,"RXT","THE ROYAL ORTHOPAEDIC HOSPITAL NHS FOUNDATION TRUST"]
[null,null,null,null,null,null,null,null,null,null,null,null,null,null,null,null,null,"Q82","RTQ","2GETHER NHS FOUNDATION TRUST",null,null,"RXV","THE ROYAL WOLVERHAMPTON NHS TRUST"]
[null,null,null,null,null,null,null,null,null,null,null,null,null,null,null,null,null,"Q82","RVN","AVON AND WILTSHIRE MENTAL HEALTH PARTNERSHIP NHS TRUST",null,null,"RXW","THE WALTON CENTRE NHS FOUNDATION TRUST"]
[null,null,null,null,null,null,null,null,null,null,null,null,null,null,null,null,null,"Q82","RWX","BERKSHIRE HEALTHCARE NHS FOUNDATION TRUST",null,null,"RXX","THE WHITTINGTON HOSPITAL NHS TRUST"]
[null,null,null,null,null,null,null,null,null,null,null,null,null,null,null,null,null,"Q82","RXQ","BUCKINGHAMSHIRE HEALTHCARE NHS TRUST",null,null,"RXY","TORBAY AND SOUTH DEVON NHS FOUNDATION TRUST"]
[null,null,null,null,null,null,null,null,null,null,null,null,null,null,null,null,null,"Q82","R1J","GLOUCESTERSHIRE CARE SERVICES NHS TRUST",null,null,"RY1","UNITED LINCOLNSHIRE HOSPITALS NHS TRUST"]
[null,null,null,null,null,null,null,null,null,null,null,null,null,null,null,null,null,"Q82","RTE","GLOUCESTERSHIRE HOSPITALS NHS FOUNDATION TRUST",null,null,"RY2","UNIVERSITY COLLEGE LONDON HOSPITALS NHS FOUNDATION TRUST"]
[null,null,null,null,null,null,null,null,null,null,null,null,null,null,null,null,null,"Q82","RN3","GREAT WESTERN HOSPITALS NHS FOUNDATION TRUST",null,null,"RY3","UNIVERSITY HOSPITAL OF SOUTH MANCHESTER NHS FOUNDATION TRUST"]
[null,null,null,null,null,null,null,null,null,null,null,null,null,null,null,null,null,"Q82","RNU","OXFORD HEALTH NHS FOUNDATION TRUST",null,null,"RY4","UNIVERSITY HOSPITAL SOUTHAMPTON NHS FOUNDATION TRUST"]
[null,null,null,null,null,null,null,null,null,null,null,null,null,null,null,null,null,"Q82","RTH","OXFORD UNIVERSITY HOSPITALS NHS FOUNDATION TRUST",null,null,"RY5","UNIVERSITY HOSPITALS BIRMINGHAM NHS FOUNDATION TRUST"]
[null,null,null,null,null,null,null,null,null,null,null,null,null,null,null,null,null,"Q82","RHW","ROYAL BERKSHIRE NHS FOUNDATION TRUST",null,null,"RY6","UNIVERSITY HOSPITALS BRISTOL NHS FOUNDATION TRUST"]
[null,null,null,null,null,null,null,null,null,null,null,null,null,null,null,null,null,"Q82","RD1","ROYAL UNITED HOSPITALS BATH NHS FOUNDATION TRUST",null,null,"RY7","UNIVERSITY HOSPITALS COVENTRY AND WARWICKSHIRE NHS TRUST"]
[null,null,null,null,null,null,null,null,null,null,null,null,null,null,null,null,null,"Q82","RNZ","SALISBURY NHS FOUNDATION TRUST",null,null,"RY8","UNIVERSITY HOSPITALS OF LEICESTER NHS TRUST"]
[null,null,null,null,null,null,null,null,null,null,null,null,null,null,null,null,null,"Q82","RYE","SOUTH CENTRAL AMBULANCE SERVICE NHS FOUNDATION TRUST",null,null,"RY9","UNIVERSITY HOSPITALS OF MORECAMBE BAY NHS FOUNDATION TRUST"]
[null,null,null,null,null,null,null,null,null,null,null,null,null,null,null,null,null,"Q83","RMC","BOLTON NHS FOUNDATION TRUST",null,null,"RYA","UNIVERSITY HOSPITALS OF NORTH MIDLANDS NHS TRUST"]
[null,null,null,null,null,null,null,null,null,null,null,null,null,null,null,null,null,"Q83","RY2","BRIDGEWATER COMMUNITY HEALTHCARE NHS FOUNDATION TRUST",null,null,"RYC","WALSALL HEALTHCARE NHS TRUST"]
[null,null,null,null,null,null,null,null,null,null,null,null,null,null,null,null,null,"Q83","RW3","CENTRAL MANCHESTER UNIVERSITY HOSPITALS NHS FOUNDATION TRUST",null,null,"RYD","WARRINGTON AND HALTON HOSPITALS NHS FOUNDATION TRUST"]
[null,null,null,null,null,null,null,null,null,null,null,null,null,null,null,null,null,"Q83","RXV","GREATER MANCHESTER MENTAL HEALTH NHS FOUNDATION TRUST",null,null,"RYE","WEST HERTFORDSHIRE HOSPITALS NHS TRUST"]
[null,null,null,null,null,null,null,null,null,null,null,null,null,null,null,null,null,"Q83","RX7","NORTH WEST AMBULANCE SERVICE NHS TRUST",null,null,"RYF","WEST LONDON MENTAL HEALTH NHS TRUST"]
[null,null,null,null,null,null,null,null,null,null,null,null,null,null,null,null,null,"Q83","RW6","PENNINE ACUTE HOSPITALS NHS TRUST",null,null,"RYG","WEST MIDLANDS AMBULANCE SERVICE NHS FOUNDATION TRUST"]
[null,null,null,null,null,null,null,null,null,null,null,null,null,null,null,null,null,"Q83","RT2","PENNINE CARE NHS FOUNDATION TRUST",null,null,"RYJ","WEST SUFFOLK NHS FOUNDATION TRUST"]
[null,null,null,null,null,null,null,null,null,null,null,null,null,null,null,null,null,"Q83","RM3","SALFORD ROYAL NHS FOUNDATION TRUST",null,null,"RYK","WESTERN SUSSEX HOSPITALS NHS FOUNDATION TRUST"]
[null,null,null,null,null,null,null,null,null,null,null,null,null,null,null,null,null,"Q83","RWJ","STOCKPORT NHS FOUNDATION TRUST",null,null,"RYR","WESTON AREA HEALTH NHS TRUST"]
[null,null,null,null,null,null,null,null,null,null,null,null,null,null,null,null,null,"Q83","RMP","TAMESIDE AND GLOSSOP INTEGRATED CARE NHS FOUNDATION TRUST",null,null,"RYV","WIRRAL COMMUNITY NHS FOUNDATION TRUST"]
[null,null,null,null,null,null,null,null,null,null,null,null,null,null,null,null,null,"Q83","RBV","THE CHRISTIE NHS FOUNDATION TRUST",null,null,"RYW","WIRRAL UNIVERSITY TEACHING HOSPITAL NHS FOUNDATION TRUST"]
[null,null,null,null,null,null,null,null,null,null,null,null,null,null,null,null,null,"Q83","RM2","UNIVERSITY HOSPITAL OF SOUTH MANCHESTER NHS FOUNDATION TRUST",null,null,"RYX","WORCESTERSHIRE ACUTE HOSPITALS NHS TRUST"]
[null,null,null,null,null,null,null,null,null,null,null,null,null,null,null,null,null,"Q83","RRF","WRIGHTINGTON, WIGAN AND LEIGH NHS FOUNDATION TRUST",null,null,"RYY","WORCESTERSHIRE HEALTH AND CARE NHS TRUST"]
[null,null,null,null,null,null,null,null,null,null,null,null,null,null,null,null,null,"Q84","RXL","BLACKPOOL TEACHING HOSPITALS NHS FOUNDATION TRUST",null,null,"TAD","WRIGHTINGTON, WIGAN AND LEIGH NHS FOUNDATION TRUST"]
[null,null,null,null,null,null,null,null,null,null,null,null,null,null,null,null,null,"Q84","RXR","EAST LANCASHIRE HOSPITALS NHS TRUST",null,null,"TAF","YEOVIL DISTRICT HOSPITAL NHS FOUNDATION TRUST"]
[null,null,null,null,null,null,null,null,null,null,null,null,null,null,null,null,null,"Q84","RW5","LANCASHIRE CARE NHS FOUNDATION TRUST",null,null,"TAH","YORK TEACHING HOSPITAL NHS FOUNDATION TRUST"]
[null,null,null,null,null,null,null,null,null,null,null,null,null,null,null,null,null,"Q84","RXN","LANCASHIRE TEACHING HOSPITALS NHS FOUNDATION TRUST",null,null,"TAJ","YORKSHIRE AMBULANCE SERVICE NHS TRUST"]